Workbook

Sheet RESUMEN GENERAL
A1: PREVISIONES DE GASTOS | E1: AÑO 2013 | Q1: AÑO 2014 | Y1: evolución económica
D3: ENERO | E3: FEBRERO | F3: MARZO | G3: ABRIL | H3: MAYO | I3: JUNIO | J3: JULIO | K3: AGOSTO | L3: SPTBRE. | M3: OCTUBRE | N3: NOVIEMBRE | O3: DICIEMBRE | P3: ENERO | Q3: FEBRERO | R3: MARZO | S3: ABRIL | T3: MAYO | U3: JUNIO | V3: JULIO | W3: AGOSTO | X3: SPTBRE. | Y3: OCTUBRE | Z3: NOVIEMBRE | AA3: DICIEMBRE | AD3: situación a | AE3: 2009-01-01 | AF3: 108797.54
A5: gastos propiedades | D5: =SUM(D6:D12) -> 1583.34 | E5: 1958.51 | F5: 1952.82 | G5: 2249.82 | H5: 2132.82 | I5: 2165 | J5: 2168 | K5: =SUM(K6:K12) -> 2165 | L5: =SUM(L6:L12) -> 2218 | M5: =SUM(M6:M12) -> 2186.4 | N5: 2354.29 | O5: 2168.99 | W5: =SUM(W6:W12) ->  | X5: =SUM(X6:X12) ->  | Y5: =SUM(Y6:Y12) ->  | Z5: =SUM(Z6:Z12) ->  | AA5: =SUM(AA6:AA12) ->  | AC5: =SUM(AB6:AB12) ->  | AE5: 2009-04-01 | AF5: =F46 -> 
B6: san vicente 222 | D6: ='comunidades prptarios.'!C9+suministros!C5+aguas!C6+seguros!C15+'gastos fijos'!C6+'gastos fijos'!C7 -> 798.02 | E6: ='comunidades prptarios.'!D9+suministros!D5+aguas!D6+seguros!D15+'gastos fijos'!D6+'gastos fijos'!D7 -> 1194.82 | F6: ='comunidades prptarios.'!E9+suministros!E5+aguas!E6+seguros!E15+'gastos fijos'!E6+'gastos fijos'!E7 -> 712.82 | G6: ='comunidades prptarios.'!F9+suministros!F5+aguas!F6+seguros!F15+'gastos fijos'!F6+'gastos fijos'!F7 -> 664.82 | H6: ='comunidades prptarios.'!G9+suministros!G5+aguas!G6+seguros!G15+'gastos fijos'!G6+'gastos fijos'!G7 -> 712.82 | I6: ='comunidades prptarios.'!H9+suministros!H5+aguas!H6+seguros!H15+'gastos fijos'!H6+'gastos fijos'!H7 -> 710 | J6: ='comunidades prptarios.'!I9+suministros!I5+aguas!I6+seguros!I15+'gastos fijos'!I6+'gastos fijos'!I7 -> 758 | K6: ='comunidades prptarios.'!J9+suministros!J5+aguas!J6+seguros!J15+'gastos fijos'!J6+'gastos fijos'!J7 -> 710 | L6: ='comunidades prptarios.'!K9+suministros!K5+aguas!K6+seguros!K15+'gastos fijos'!K6+'gastos fijos'!K7 -> 808 | M6: ='comunidades prptarios.'!L9+suministros!L5+aguas!L6+seguros!L13+'gastos fijos'!L6+'gastos fijos'!L7 -> 710 | N6: ='comunidades prptarios.'!M9+suministros!M5+aguas!M6+seguros!M13+'gastos fijos'!M6+'gastos fijos'!M7 -> 758 | O6: ='comunidades prptarios.'!N9+suministros!N5+aguas!N6+seguros!N15+'gastos fijos'!N6+'gastos fijos'!N7 -> 710 | P6: ='comunidades prptarios.'!O9+suministros!O5+aguas!O6+seguros!O15+'gastos fijos'!O6+'gastos fijos'!O7 ->  | Q6: ='comunidades prptarios.'!P9+suministros!P5+aguas!P6+seguros!P15+'gastos fijos'!P6+'gastos fijos'!P7 ->  | R6: ='comunidades prptarios.'!Q9+suministros!Q5+aguas!Q6+seguros!Q15+'gastos fijos'!Q6+'gastos fijos'!Q7 ->  | S6: ='comunidades prptarios.'!R9+suministros!R5+aguas!R6+seguros!R15+'gastos fijos'!R6+'gastos fijos'!R7 ->  | T6: ='comunidades prptarios.'!S9+suministros!S5+aguas!S6+seguros!S15+'gastos fijos'!S6+'gastos fijos'!S7 ->  | U6: ='comunidades prptarios.'!T9+suministros!T5+aguas!T6+seguros!T15+'gastos fijos'!T6+'gastos fijos'!T7 ->  | V6: ='comunidades prptarios.'!U9+suministros!U5+aguas!U6+seguros!U15+'gastos fijos'!U6+'gastos fijos'!U7 ->  | W6: ='comunidades prptarios.'!V9+suministros!V5+aguas!V6+seguros!V15+'gastos fijos'!V6+'gastos fijos'!V7 ->  | X6: ='comunidades prptarios.'!W9+suministros!W5+aguas!W6+seguros!W15+'gastos fijos'!W6+'gastos fijos'!W7 ->  | Y6: ='comunidades prptarios.'!X9+suministros!X5+aguas!X6+seguros!X15+'gastos fijos'!X6+'gastos fijos'!X7 ->  | Z6: ='comunidades prptarios.'!Y9+suministros!Y5+aguas!Y6+seguros!Y15+'gastos fijos'!Y6+'gastos fijos'!Y7 ->  | AA6: ='comunidades prptarios.'!Z9+suministros!Z5+aguas!Z6+seguros!Z15+'gastos fijos'!Z6+'gastos fijos'!Z7 ->  | AB6: =SUM(D6:AA6) ->  | AC6: =AC5/24 ->  | AE6: 2009-07-01 | AF6: =I46 -> 
AB7: 0 | AE7: 2009-10-01 | AF7: =L46 -> 
B8: cadiz 38 | D8: ='comunidades prptarios.'!C15+suministros!C7+aguas!C9+seguros!C18 -> 785.32 | E8: ='comunidades prptarios.'!D15+suministros!D7+aguas!D9+seguros!D18 -> 763.69 | F8: ='comunidades prptarios.'!E15+suministros!E7+aguas!E9+seguros!E18 -> 990 | G8: ='comunidades prptarios.'!F15+suministros!F7+aguas!F9+seguros!F18 -> 885 | H8: ='comunidades prptarios.'!G15+suministros!G7+aguas!G9+seguros!G18 -> 720 | I8: ='comunidades prptarios.'!H15+suministros!H7+aguas!H9+seguros!H18 -> 755 | J8: ='comunidades prptarios.'!I15+suministros!I7+aguas!I9+seguros!I18 -> 710 | K8: ='comunidades prptarios.'!J15+suministros!J7+aguas!J9+seguros!J18 -> 755 | L8: ='comunidades prptarios.'!K15+suministros!K7+aguas!K9+seguros!K18 -> 710 | M8: ='comunidades prptarios.'!L15+suministros!L7+aguas!L9+seguros!L17 -> 745 | N8: ='comunidades prptarios.'!M15+suministros!M7+aguas!M9+seguros!M17 -> 731.17 | O8: ='comunidades prptarios.'!N15+suministros!N7+aguas!N9+seguros!N18 -> 685 | P8: ='comunidades prptarios.'!O15+suministros!O7+aguas!O9+seguros!O18 ->  | Q8: ='comunidades prptarios.'!P15+suministros!P7+aguas!P9+seguros!P18 ->  | R8: ='comunidades prptarios.'!Q15+suministros!Q7+aguas!Q9+seguros!Q18 ->  | S8: ='comunidades prptarios.'!R15+suministros!R7+aguas!R9+seguros!R18 ->  | T8: ='comunidades prptarios.'!S15+suministros!S7+aguas!S9+seguros!S18 ->  | U8: ='comunidades prptarios.'!T15+suministros!T7+aguas!T9+seguros!T18 ->  | V8: ='comunidades prptarios.'!U15+suministros!U7+aguas!U9+seguros!U18 ->  | W8: ='comunidades prptarios.'!V15+suministros!V7+aguas!V9+seguros!V18 ->  | X8: ='comunidades prptarios.'!W15+suministros!W7+aguas!W9+seguros!W18 ->  | Y8: ='comunidades prptarios.'!X15+suministros!X7+aguas!X9+seguros!X18 ->  | Z8: ='comunidades prptarios.'!Y15+suministros!Y7+aguas!Y9+seguros!Y18 ->  | AA8: ='comunidades prptarios.'!Z15+suministros!Z7+aguas!Z9+seguros!Z18 ->  | AE8: 2009-12-31 | AF8: =O46 -> 
AB9: 0
B10: cadiz 77 | D10: ='comunidades prptarios.'!C20+suministros!C9+aguas!C11 -> 0 | E10: ='comunidades prptarios.'!D20+suministros!D9+aguas!D11 -> 0 | F10: ='comunidades prptarios.'!E20+suministros!E9+aguas!E11 -> 0 | G10: ='comunidades prptarios.'!F20+suministros!F9+aguas!F11 -> 700 | H10: ='comunidades prptarios.'!G20+suministros!G9+aguas!G11 -> 700 | I10: ='comunidades prptarios.'!H20+suministros!H9+aguas!H11 -> 700 | J10: ='comunidades prptarios.'!I20+suministros!I9+aguas!I11 -> 700 | K10: ='comunidades prptarios.'!J20+suministros!J9+aguas!J11 -> 700 | L10: ='comunidades prptarios.'!K20+suministros!K9+aguas!K11 -> 700 | M10: ='comunidades prptarios.'!L20+suministros!L9+aguas!L11 -> 700 | N10: ='comunidades prptarios.'!M20+suministros!M9+aguas!M11 -> 865.12 | O10: ='comunidades prptarios.'!N20+suministros!N9+aguas!N11 -> 700 | P10: ='comunidades prptarios.'!O20+suministros!O9+aguas!O11 ->  | Q10: ='comunidades prptarios.'!P20+suministros!P9+aguas!P11 ->  | R10: ='comunidades prptarios.'!Q20+suministros!Q9+aguas!Q11 ->  | S10: ='comunidades prptarios.'!R20+suministros!R9+aguas!R11 ->  | T10: ='comunidades prptarios.'!S20+suministros!S9+aguas!S11 ->  | U10: ='comunidades prptarios.'!T20+suministros!T9+aguas!T11 ->  | V10: ='comunidades prptarios.'!U20+suministros!U9+aguas!U11 ->  | W10: ='comunidades prptarios.'!V20+suministros!V9+aguas!V11 ->  | X10: ='comunidades prptarios.'!W20+suministros!W9+aguas!W11 ->  | Y10: ='comunidades prptarios.'!X20+suministros!X9+aguas!X11 ->  | Z10: ='comunidades prptarios.'!Y20+suministros!Y9+aguas!Y11 ->  | AA10: ='comunidades prptarios.'!Z20+suministros!Z9+aguas!Z11 -> 
AB11: 0
B12: sueca 64 | D12: ='comunidades prptarios.'!C24 -> 0 | E12: ='comunidades prptarios.'!D24 -> 0 | F12: ='comunidades prptarios.'!E24 -> 250 | G12: ='comunidades prptarios.'!F24 -> 0 | H12: ='comunidades prptarios.'!G24 -> 0 | I12: ='comunidades prptarios.'!H24 -> 0 | J12: ='comunidades prptarios.'!I24 -> 0 | K12: ='comunidades prptarios.'!J24 -> 0 | L12: ='comunidades prptarios.'!K24 -> 0 | M12: ='comunidades prptarios.'!L24 -> 31.4 | N12: ='comunidades prptarios.'!M24 -> 0 | O12: ='comunidades prptarios.'!N24 -> 73.99 | P12: ='comunidades prptarios.'!O24 ->  | Q12: ='comunidades prptarios.'!P24 ->  | R12: ='comunidades prptarios.'!Q24 ->  | S12: ='comunidades prptarios.'!R24 ->  | T12: ='comunidades prptarios.'!S24 ->  | U12: ='comunidades prptarios.'!T24 ->  | V12: ='comunidades prptarios.'!U24 ->  | W12: ='comunidades prptarios.'!V24 ->  | X12: ='comunidades prptarios.'!W24 ->  | Y12: ='comunidades prptarios.'!X24 ->  | Z12: ='comunidades prptarios.'!Y24 ->  | AA12: ='comunidades prptarios.'!Z24 -> 
AB13: =SUM(D13:O13) -> 0
A14: vida profesional | D14: =SUM(D15:D20) ->  | K14: =SUM(K15:K20) ->  | L14: =SUM(L15:L20) ->  | W14: =SUM(W15:W20) ->  | X14: =SUM(X15:X20) ->  | Y14: =SUM(Y15:Y20) ->  | Z14: =SUM(Z15:Z20) ->  | AA14: =SUM(AA15:AA20) ->  | AC14: =SUM(AB15:AB20) -> 
B15: hna | D15: =seguros!C5 -> 252.09 | E15: =seguros!D5 -> 215.68 | F15: =seguros!E5 -> 230 | G15: =seguros!F5 -> 230 | H15: =seguros!G5 -> 230 | I15: =seguros!H5 -> 230 | J15: =seguros!I5 -> 230 | K15: =seguros!J5 -> 230 | L15: =seguros!K5 -> 230 | M15: =seguros!L5 -> 230 | N15: =seguros!M5 -> 230 | O15: =seguros!N5 -> 0 | P15: =seguros!O5 ->  | Q15: =seguros!P5 ->  | R15: =seguros!Q5 ->  | S15: =seguros!R5 ->  | T15: =seguros!S5 ->  | U15: =seguros!T5+seguros!T12+seguros!T11 ->  | V15: =seguros!U5+seguros!U12+seguros!U11 ->  | W15: =seguros!V5+seguros!V12+seguros!V11 ->  | X15: =seguros!W5+seguros!W12+seguros!W11 ->  | Y15: =seguros!X5+seguros!X12+seguros!X11 ->  | Z15: =seguros!Y5+seguros!Y12+seguros!Y11 ->  | AA15: =seguros!Z5+seguros!Z12+seguros!Z11 ->  | AB15: =SUM(D15:AA15) ->  | AC15: =AC14/24 -> 
B16: asemas | D16: =seguros!C6+seguros!C7 -> 245.78 | E16: =seguros!D6+seguros!D7 -> 0 | F16: =seguros!E6+seguros!E7 -> 0 | G16: =seguros!F6+seguros!F7 -> 245.78 | H16: =seguros!G6+seguros!G7 -> 0 | I16: =seguros!H6+seguros!H7 -> 0 | J16: =seguros!I6+seguros!I7 -> 245.78 | K16: =seguros!J6+seguros!J7 -> 0 | L16: =seguros!K6+seguros!K7 -> 0 | M16: =seguros!L6+seguros!L7 -> 245.78 | N16: =seguros!M6+seguros!M7 -> 0 | O16: =seguros!N6+seguros!N7 -> 0 | P16: =seguros!O6+seguros!O7 ->  | Q16: =seguros!P6+seguros!P7 ->  | R16: =seguros!Q6+seguros!Q7 ->  | S16: =seguros!R6+seguros!R7 ->  | T16: =seguros!S6+seguros!S7 ->  | U16: =seguros!T6+seguros!T7 ->  | V16: =seguros!U6+seguros!U7 ->  | W16: =seguros!V6+seguros!V7 ->  | X16: =seguros!W6+seguros!W7 ->  | Y16: 0 | Z16: =seguros!Y6+seguros!Y7 ->  | AA16: =seguros!Z6+seguros!Z7 -> 
B17: seguridad social | D17: =seguros!C9+seguros!C10 -> 436.68 | E17: =seguros!D9+seguros!D10 -> 436.68 | F17: =seguros!E9+seguros!E10 -> 436.68 | G17: =seguros!F9+seguros!F10 -> 179.96 | H17: =seguros!G9+seguros!G10 -> 179.96 | I17: =seguros!H9+seguros!H10 -> 179.96 | J17: =seguros!I9+seguros!I10 -> 179.96 | K17: =seguros!J9+seguros!J10 -> 179.96 | L17: =seguros!K9+seguros!K10 -> 179.96 | M17: =seguros!L9+seguros!L10 -> 179.96 | N17: =seguros!M9+seguros!M10 -> 179.96 | O17: =seguros!N9+seguros!N10 -> 179.96 | P17: =seguros!O9+seguros!O10 ->  | Q17: =seguros!P9+seguros!P10 ->  | R17: =seguros!Q9+seguros!Q10 ->  | S17: =seguros!R9+seguros!R10 ->  | T17: =seguros!S9+seguros!S10 ->  | U17: =seguros!T9+seguros!T10 ->  | V17: =seguros!U9+seguros!U10 ->  | W17: =seguros!V9+seguros!V10 ->  | X17: =seguros!W9+seguros!W10 ->  | Y17: =seguros!X9+seguros!X10 ->  | Z17: =seguros!Y9+seguros!Y10 ->  | AA17: =seguros!Z9+seguros!Z10 -> 
B18: sueldos | D18: ='gastos fijos'!#REF! ->  | E18: ='gastos fijos'!#REF! ->  | F18: ='gastos fijos'!#REF! ->  | G18: ='gastos fijos'!#REF! ->  | H18: ='gastos fijos'!#REF! ->  | I18: ='gastos fijos'!#REF! ->  | J18: ='gastos fijos'!#REF! ->  | K18: 0 | L18: ='gastos fijos'!#REF! ->  | M18: ='gastos fijos'!#REF! ->  | N18: ='gastos fijos'!#REF! ->  | O18: ='gastos fijos'!#REF! ->  | P18: ='gastos fijos'!#REF! ->  | Q18: ='gastos fijos'!#REF! ->  | R18: ='gastos fijos'!#REF! ->  | S18: ='gastos fijos'!#REF! ->  | T18: ='gastos fijos'!#REF! ->  | U18: ='gastos fijos'!#REF! ->  | V18: ='gastos fijos'!#REF! ->  | W18: 0 | X18: ='gastos fijos'!#REF! ->  | Y18: ='gastos fijos'!#REF! ->  | Z18: ='gastos fijos'!#REF! ->  | AA18: ='gastos fijos'!#REF! -> 
B19: asesoramiento | D19: ='gastos fijos'!#REF!+'gastos fijos'!#REF! ->  | E19: ='gastos fijos'!#REF!+'gastos fijos'!#REF! ->  | F19: ='gastos fijos'!#REF!+'gastos fijos'!#REF! ->  | G19: ='gastos fijos'!#REF!+'gastos fijos'!#REF! ->  | H19: ='gastos fijos'!#REF!+'gastos fijos'!#REF! ->  | I19: ='gastos fijos'!#REF!+'gastos fijos'!#REF! ->  | J19: ='gastos fijos'!#REF!+'gastos fijos'!#REF! ->  | K19: ='gastos fijos'!#REF!+'gastos fijos'!#REF! ->  | L19: ='gastos fijos'!#REF!+'gastos fijos'!#REF! ->  | M19: ='gastos fijos'!#REF!+'gastos fijos'!#REF! ->  | N19: ='gastos fijos'!#REF!+'gastos fijos'!#REF! ->  | O19: ='gastos fijos'!#REF!+'gastos fijos'!#REF! ->  | P19: ='gastos fijos'!#REF!+'gastos fijos'!#REF! ->  | Q19: ='gastos fijos'!#REF!+'gastos fijos'!#REF! ->  | R19: ='gastos fijos'!#REF!+'gastos fijos'!#REF! ->  | S19: ='gastos fijos'!#REF!+'gastos fijos'!#REF! ->  | T19: ='gastos fijos'!#REF!+'gastos fijos'!#REF! ->  | U19: ='gastos fijos'!#REF!+'gastos fijos'!#REF! ->  | V19: ='gastos fijos'!#REF!+'gastos fijos'!#REF! ->  | W19: ='gastos fijos'!#REF!+'gastos fijos'!#REF! ->  | X19: ='gastos fijos'!#REF!+'gastos fijos'!#REF! ->  | Y19: ='gastos fijos'!#REF!+'gastos fijos'!#REF! ->  | Z19: ='gastos fijos'!#REF!+'gastos fijos'!#REF! ->  | AA19: ='gastos fijos'!#REF!+'gastos fijos'!#REF! -> 
B20: facturas pagadas | E20: 1350 | R20: 500 | U20: 500 | X20: 116 | Y20: 125 | AA20: 500 | AB20: 3091
AB21: =SUM(D21:O21) -> 0
A22: impuestos | D22: =SUM(D23:D27) ->  | K22: =SUM(K23:K27) ->  | L22: =SUM(L23:L27) ->  | P22: 1000 | Q22: 0 | R22: 0 | S22: 600 | T22: 0 | U22: 0 | V22: 500 | W22: =SUM(W23:W27) -> 0 | X22: =SUM(X23:X27) -> 0 | Y22: =SUM(Y23:Y27) -> 790 | Z22: =SUM(Z23:Z27) -> 0 | AA22: =SUM(AA23:AA27) -> 0 | AC22: =SUM(AB23:AB27) -> 
V23: 500 | Y23: 0 | AB23: =SUM(D23:AA23) -> 500 | AC23: =AC22/24 -> 
B24: carlos | D24: =Resumen!B22+Resumen!#REF! ->  | E24: =Resumen!C22+Resumen!#REF! ->  | F24: =Resumen!D22+Resumen!#REF! ->  | G24: =Resumen!E22+Resumen!#REF! ->  | H24: =Resumen!F22+Resumen!#REF! ->  | I24: =Resumen!G22+Resumen!#REF! ->  | J24: =Resumen!H22+Resumen!#REF! ->  | K24: =Resumen!I22+Resumen!#REF! ->  | L24: =Resumen!J22+Resumen!#REF! ->  | M24: =Resumen!K22+Resumen!#REF! ->  | N24: =Resumen!L22+Resumen!#REF! ->  | O24: =Resumen!M22+Resumen!#REF! ->  | P24: 1000 | S24: 600 | Y24: 600 | AB24: =SUM(D24:AA24) -> 
B25: lucia | D25: =Resumen!#REF!+Resumen!B23+Resumen!B24 ->  | E25: =Resumen!#REF!+Resumen!C23+Resumen!C24 ->  | F25: =Resumen!#REF!+Resumen!D23+Resumen!D24 ->  | G25: =Resumen!#REF!+Resumen!E23+Resumen!E24 ->  | H25: =Resumen!#REF!+Resumen!F23+Resumen!F24 ->  | I25: =Resumen!#REF!+Resumen!G23+Resumen!G24 ->  | J25: =Resumen!#REF!+Resumen!H23+Resumen!H24 ->  | K25: =Resumen!#REF!+Resumen!I23+Resumen!I24 ->  | L25: =Resumen!#REF!+Resumen!J23+Resumen!J24 ->  | M25: =Resumen!#REF!+Resumen!K23+Resumen!K24 ->  | N25: =Resumen!#REF!+Resumen!L23+Resumen!L24 ->  | O25: =Resumen!#REF!+Resumen!M23+Resumen!M24 ->  | AB25: =SUM(D25:AA25) -> 
B26: trazia | D26: =Resumen!#REF!+Resumen!#REF! ->  | E26: =Resumen!#REF!+Resumen!#REF! ->  | F26: =Resumen!#REF!+Resumen!#REF! ->  | G26: =Resumen!#REF!+Resumen!#REF! ->  | H26: =Resumen!#REF!+Resumen!#REF! ->  | I26: =Resumen!#REF!+Resumen!#REF! ->  | J26: =Resumen!#REF!+Resumen!#REF! ->  | K26: =Resumen!#REF!+Resumen!#REF! ->  | L26: =Resumen!#REF!+Resumen!#REF! ->  | M26: =Resumen!#REF!+Resumen!#REF! ->  | N26: =Resumen!#REF!+Resumen!#REF! ->  | O26: =Resumen!#REF!+Resumen!#REF! ->  | P26: 0 | Y26: 190 | AB26: =SUM(D26:AA26) -> 
W27: 0 | AB27: =SUM(D27:AA27) -> 0
AB28: =SUM(D28:O28) -> 0
A29: vida personal | D29: =SUM(D30:D33) -> 577.06 | E29: 250 | F29: 250 | G29: 250 | H29: 250 | I29: 250 | J29: 250 | K29: =SUM(K30:K33) -> 60 | L29: =SUM(L30:L33) -> 0 | M29: 0 | N29: 200 | O29: 200 | P29: 600 | Q29: 600 | R29: 600 | S29: 600 | T29: 600 | U29: 600 | V29: 400 | W29: =SUM(W30:W33) -> 160 | X29: =SUM(X30:X33) -> 919.33 | Y29: =SUM(Y30:Y33) -> 800 | Z29: =SUM(Z30:Z33) -> 650 | AA29: =SUM(AA30:AA33) -> 650 | AC29: =SUM(AB30:AB33) -> 9716.39
B30: gastos diarios | D30: 250 | E30: 250 | F30: 250 | G30: 250 | H30: 250 | I30: 250 | J30: 250 | K30: 60 | L30: 0 | M30: 0 | N30: 200 | O30: 200 | P30: 200 | Q30: 200 | R30: 200 | S30: 200 | T30: 200 | U30: 200 | V30: 200 | W30: 60 | X30: 250 | Y30: 250 | Z30: 250 | AA30: 250 | AB30: =SUM(D30:AA30) -> 4670 | AC30: =AC29/24 -> 404.8495833
B31: vida | D31: 0 | P31: 150 | Q31: 150 | R31: 150 | S31: 150 | T31: 150 | U31: 150 | V31: 150 | W31: 50 | X31: 150 | Y31: 150 | Z31: 150 | AA31: 150 | AB31: =SUM(D31:AA31) -> 1700
B32: VISA | D32: =160.13+16.93 -> 177.06 | P32: 150 | Q32: 150 | R32: 150 | S32: 150 | T32: 150 | U32: 150 | V32: 0 | W32: 0 | X32: 419.33 | Y32: 300 | Z32: 150 | AA32: 150 | AB32: =SUM(D32:AA32) -> 2096.39
B33: cajero | D33: 150 | P33: 100 | Q33: 100 | R33: 100 | S33: 100 | T33: 100 | U33: 100 | V33: 50 | W33: 50 | X33: 100 | Y33: 100 | Z33: 100 | AA33: 100 | AB33: =SUM(D33:AA33) -> 1250
AB34: =SUM(D34:O34) -> 0
A35: varios | D35: =SUM(D36:D40) -> 0 | E35: 230.67 | F35: 0 | G35: 0 | H35: 39 | I35: 0 | J35: 0 | K35: =SUM(K36:K40) -> 0 | L35: =SUM(L36:L40) -> 0 | M35: 150.17 | N35: 0 | O35: 150 | P35: 0 | Q35: 0 | R35: 0 | S35: 0 | T35: 0 | U35: 0 | V35: 0 | W35: =SUM(W36:W40) -> 0 | X35: =SUM(X36:X40) -> 0 | Y35: =SUM(Y36:Y40) -> 0 | Z35: =SUM(Z36:Z40) -> 0 | AA35: =SUM(AA36:AA40) -> 0 | AC35: =SUM(AB36:AB40) -> 569.84
B36: gastos varios | D36: ='gastos varios'!C31 -> 0 | E36: ='gastos varios'!D31 -> 230.67 | F36: ='gastos varios'!E31 -> 0 | G36: ='gastos varios'!F31 -> 0 | H36: ='gastos varios'!G31 -> 39 | I36: ='gastos varios'!H31 -> 0 | J36: ='gastos varios'!I31 -> 0 | K36: ='gastos varios'!J31 -> 0 | L36: ='gastos varios'!K31 -> 0 | M36: ='gastos varios'!L31+'gastos fijos'!L10+'gastos fijos'!L11+'gastos fijos'!L12 -> 150.17 | N36: ='gastos varios'!M31+'gastos fijos'!M10+'gastos fijos'!M11+'gastos fijos'!M12 -> 0 | O36: ='gastos varios'!N31 -> 150 | P36: ='gastos varios'!O31 -> 0 | Q36: ='gastos varios'!P31 -> 0 | R36: ='gastos varios'!Q31 -> 0 | S36: ='gastos varios'!R31 -> 0 | T36: ='gastos varios'!S31 -> 0 | U36: ='gastos varios'!T31 -> 0 | V36: ='gastos varios'!U31 -> 0 | W36: ='gastos varios'!V31 -> 0 | X36: ='gastos varios'!W31 -> 0 | Y36: ='gastos varios'!X31 -> 0 | Z36: ='gastos varios'!Y31 -> 0 | AA36: ='gastos varios'!Z31 -> 0 | AB36: =SUM(D36:AA36) -> 569.84 | AC36: =AC35/24 -> 23.74333333
B37: telefonia | D37: ='gastos fijos'!C14+'gastos fijos'!C15 -> 0 | E37: ='gastos fijos'!D14+'gastos fijos'!D15 -> 0 | F37: ='gastos fijos'!E14+'gastos fijos'!E15 -> 0 | G37: ='gastos fijos'!F14+'gastos fijos'!F15 -> 0 | H37: ='gastos fijos'!G14+'gastos fijos'!G15 -> 0 | I37: ='gastos fijos'!H14+'gastos fijos'!H15 -> 0 | J37: ='gastos fijos'!I14+'gastos fijos'!I15 -> 0 | K37: ='gastos fijos'!J14+'gastos fijos'!J15 -> 0 | L37: ='gastos fijos'!K14+'gastos fijos'!K15 -> 0 | M37: ='gastos fijos'!L14+'gastos fijos'!L15 -> 0 | N37: ='gastos fijos'!M14+'gastos fijos'!M15 -> 0 | O37: ='gastos fijos'!N14+'gastos fijos'!N15 -> 0 | P37: ='gastos fijos'!O14+'gastos fijos'!O15 -> 0 | Q37: ='gastos fijos'!P14+'gastos fijos'!P15 -> 0 | R37: ='gastos fijos'!Q14+'gastos fijos'!Q15 -> 0 | S37: ='gastos fijos'!R14+'gastos fijos'!R15 -> 0 | T37: ='gastos fijos'!S14+'gastos fijos'!S15 -> 0 | U37: ='gastos fijos'!T14+'gastos fijos'!T15 -> 0 | V37: ='gastos fijos'!U14+'gastos fijos'!U15 -> 0 | W37: ='gastos fijos'!V14+'gastos fijos'!V15 -> 0 | X37: ='gastos fijos'!W14+'gastos fijos'!W15 -> 0 | Y37: ='gastos fijos'!X14+'gastos fijos'!X15 -> 0 | Z37: ='gastos fijos'!Y14+'gastos fijos'!Y15 -> 0 | AA37: ='gastos fijos'!Z14+'gastos fijos'!Z15 -> 0 | AB37: =SUM(D37:AA37) -> 0
B38: seguros vehiculos | M38: =seguros!L23+seguros!L24 -> 0 | N38: =seguros!M23+seguros!M24 -> 0 | O38: =seguros!N23+seguros!N24 -> 0 | P38: =seguros!O23+seguros!O24 -> 0 | Q38: =seguros!P23+seguros!P24 -> 0 | R38: =seguros!Q23+seguros!Q24 -> 0 | S38: =seguros!R23+seguros!R24 -> 0 | T38: =seguros!S23+seguros!S24 -> 0 | U38: =seguros!T23+seguros!T24 -> 0 | V38: =seguros!U23+seguros!U24 -> 0 | W38: =seguros!V23+seguros!V24 -> 0 | X38: =seguros!W23+seguros!W24 -> 0 | Y38: =seguros!X23+seguros!X24 -> 0 | Z38: =seguros!Y23+seguros!Y24 -> 0 | AA38: =seguros!Z23+seguros!Z24 -> 0 | AB38: =SUM(D38:V38) -> 0
AB39: =SUM(D39:V39) -> 0
AB40: =SUM(D40:O40) -> 0
D41: =SUM(D5:D40)-D5-D14-D22-D29-D35 ->  | L41: =SUM(L5:L40)-L5-L14-L22-L29-L35 ->  | N41: =SUM(N5:N40)-N5-N14-N22-N29-N35 ->  | R41: =SUM(R5:R40)-R5-R14-R22-R29-R35 ->  | W41: =SUM(W5:W40)-W5-W14-W22-W29-W35 ->  | X41: =SUM(X5:X40)-X5-X14-X22-X29-X35 ->  | Y41: =SUM(Y5:Y40)-Y5-Y14-Y22-Y29-Y35 ->  | Z41: =SUM(Z5:Z40)-Z5-Z14-Z22-Z29-Z35 ->  | AA41: =SUM(AA5:AA40)-AA5-AA14-AA22-AA29-AA35 ->  | AB41: =AVERAGE(D41:AA41) ->  | AC41: =SUM(D41:AA41) -> 
A42: gastos trimestre | F42: =SUM(D41:F41) ->  | I42: =SUM(G41:I41) ->  | L42: =SUM(J41:L41) ->  | O42: =SUM(M41:O41) ->  | R42: =SUM(P41:R41) ->  | U42: =SUM(S41:U41) ->  | X42: =SUM(V41:X41) ->  | AA42: =SUM(Y41:AA41) -> 
A43: cobros teóricos | E43: =SUM('[1]1T'!$K$6:$L$29,'[1]1T'!$N$6:$N$29) -> 5900.51 | F43: =E43-F42 ->  | H43: =SUM('[1]2T'!$K$5:$L$29,'[1]2T'!$N$5:$N$29) -> 11951.9552 | I43: =H43-I42 ->  | K43: =SUM('[1]3T'!$K$6:$L$40,'[1]3T'!$N$6:$N$40) -> 435 | L43: =K43-L42 ->  | N43: =SUM('[1]4T'!$K$5:$L$44,'[1]4T'!$N$5:$N$44) -> 16903.93 | O43: =N43-O42 ->  | Q43: 0 | R43: =Q43-R42 ->  | T43: 0 | U43: =T43-U42 ->  | W43: 0 | X43: =W43-X42 ->  | Z43: 0 | AA43: =Z43-AA42 ->  | AB43: =AVERAGE(E43,H43,K43,N43,Q43,T43) -> 5865.232533 | AC43: =E43+H43+K43+N43+Q43+T43+W43+Z43 -> 35191.3952
A44: cobros reales | E44: ='[1]1T'!$L$34+'[1]1T'!$M$34+'[1]1T'!$N$34+'[1]1T'!$D$34 -> 5900.51 | F44: =E44-F42 ->  | H44: =SUM('[1]2T'!$L$34+'[1]2T'!$M$34+'[1]2T'!$N$34+'[1]2T'!$D$34) -> 11951.9552 | I44: =H44-I42 ->  | K44: ='[1]3T'!$L$45+'[1]3T'!$M$45+'[1]3T'!$N$45+'[1]3T'!$D$45 -> 435 | L44: =K44-L42 ->  | N44: ='[1]4T'!$L$49+'[1]4T'!$M$49+'[1]4T'!$N$49+'[1]4T'!$D$49 -> 16903.93 | O44: =N44-O42 ->  | Q44: 0 | R44: =Q44-R42 ->  | T44: 0 | U44: =T44-U42 ->  | W44: ='[1]3T'!$L$45+'[1]3T'!$M$45+'[1]3T'!$N$45+'[1]3T'!$D$45 -> 435 | X44: =W44-X42 ->  | Z44: ='[1]4T'!$L$49+'[1]4T'!$M$49+'[1]4T'!$N$49+'[1]4T'!$D$49 -> 16903.93 | AA44: =Z44-AA42 ->  | AB44: =AVERAGE(E44,H44,K44,N44,Q44,T44) -> 5865.232533 | AC44: =E44+H44+K44+N44+Q44+T44+W44+Z44 -> 52530.3252
A45: resultados con teóricos | F45: =AF3+F43 ->  | I45: =F45+I43 ->  | L45: =I45+L43 ->  | O45: =L45+O43 ->  | R45: =O45+R43 ->  | U45: =R45+U43 ->  | X45: =U45+X43 ->  | AA45: =X45+AA43 -> 
A46: resultados con reales | D46: 108797.54 | F46: =AF3+F44 ->  | I46: =F46+I44 ->  | J46: =I46-J41 ->  | K46: =J46-K41 ->  | L46: =I46+L44 ->  | M46: =L46-M41 ->  | N46: =M46-N41 ->  | O46: =L46+O44 ->  | P46: =O46-P41 ->  | Q46: =P46-Q41 ->  | R46: =O46+R44 ->  | S46: =R46-S41 ->  | T46: =S46-T41 ->  | U46: =R46+U44 ->  | V46: =U46-V41 ->  | W46: =V46-W41 ->  | X46: =U46+X44 ->  | Y46: =X46-Y41 ->  | Z46: =Y46-Z41 ->  | AA46: =X46+AA44 ->  | AC46: =AC44-AC41 -> 
A47: relación teórico/real | E47: =(E44/E43) -> 1 | H47: =(H44/H43) -> 1 | K47: =(K44/K43) -> 1 | N47: =(N44/N43) -> 1 | Q47: =(Q44/Q43) ->  | T47: =(T44/T43) ->  | W47: =(W44/W43) ->  | Z47: =(Z44/Z43) -> 
A48: relación capital inicial/capital final | F48: =F46/AF3 ->  | I48: =I46/AF3 ->  | L48: =L46/AF3 ->  | O48: =O46/AF3 ->  | R48: =O46/AF6 ->  | U48: =U46/AF6 ->  | X48: =X46/AR3 ->  | AA48: =AA46/AR3 -> 
A49: perdemos | F49: =1-F48 ->  | I49: =1-I48 ->  | L49: =1-L48 ->  | O49: =1-O48 ->  | R49: =1-R48 ->  | U49: =1-U48 ->  | X49: =1-X48 ->  | AA49: =1-AA48 -> 

Sheet comunidades prptarios.
A1: COMUNIDADES PROPIETARIOS | D1: AÑO 2013 | O1: AÑO 2014
C2: ENERO | D2: FEBRERO | E2: MARZO | F2: ABRIL | G2: MAYO | H2: JUNIO | I2: JULIO | J2: AGOSTO | K2: SPTBRE. | L2: OCTUBRE | M2: NOVIEMBRE | N2: DICIEMBRE | O2: ENERO | P2: FEBRERO | Q2: MARZO | R2: ABRIL | S2: MAYO | T2: JUNIO | U2: JULIO | V2: AGOSTO | W2: SPTBRE. | X2: OCTUBRE | Y2: NOVIEMBRE | Z2: DICIEMBRE
O3: 1 | P3: 2 | Q3: 3 | R3: 4 | S3: 5 | T3: 6 | U3: 7 | V3: 8 | W3: 9 | X3: 10 | Y3: 11 | Z3: 12
A5: HIP. SAN VICENTE | D5: 530 | O5: =SUMPRODUCT((#REF!=O$3)*(#REF!=$A$5)*#REF!) ->  | P5: =SUMPRODUCT((#REF!=P$3)*(#REF!=$A$5)*#REF!) ->  | Q5: =SUMPRODUCT((#REF!=Q$3)*(#REF!=$A$5)*#REF!) ->  | R5: =SUMPRODUCT((#REF!=R$3)*(#REF!=$A$5)*#REF!) ->  | S5: =SUMPRODUCT((#REF!=S$3)*(#REF!=$A$5)*#REF!) ->  | T5: =SUMPRODUCT((#REF!=T$3)*(#REF!=$A$5)*#REF!) ->  | U5: =SUMPRODUCT((#REF!=U$3)*(#REF!=$A$5)*#REF!) ->  | V5: =SUMPRODUCT((#REF!=V$3)*(#REF!=$A$5)*#REF!) ->  | W5: =SUMPRODUCT((#REF!=W$3)*(#REF!=$A$5)*#REF!) ->  | X5: =SUMPRODUCT((#REF!=X$3)*(#REF!=$A$5)*#REF!) ->  | Y5: =SUMPRODUCT((#REF!=Y$3)*(#REF!=$A$5)*#REF!) ->  | Z5: =SUMPRODUCT((#REF!=Z$3)*(#REF!=$A$5)*#REF!) ->  | AA5: =SUM(C5:N5) -> 530
A6: CDAD. SAN VICENTE | O6: =SUMPRODUCT((#REF!=O$3)*(#REF!=$A$6)*#REF!) ->  | P6: =SUMPRODUCT((#REF!=P$3)*(#REF!=$A$6)*#REF!) ->  | Q6: =SUMPRODUCT((#REF!=Q$3)*(#REF!=$A$6)*#REF!) ->  | R6: =SUMPRODUCT((#REF!=R$3)*(#REF!=$A$6)*#REF!) ->  | S6: =SUMPRODUCT((#REF!=S$3)*(#REF!=$A$6)*#REF!) ->  | T6: =SUMPRODUCT((#REF!=T$3)*(#REF!=$A$6)*#REF!) ->  | U6: =SUMPRODUCT((#REF!=U$3)*(#REF!=$A$6)*#REF!) ->  | V6: =SUMPRODUCT((#REF!=V$3)*(#REF!=$A$6)*#REF!) ->  | W6: =SUMPRODUCT((#REF!=W$3)*(#REF!=$A$6)*#REF!) ->  | X6: =SUMPRODUCT((#REF!=X$3)*(#REF!=$A$6)*#REF!) ->  | Y6: =SUMPRODUCT((#REF!=Y$3)*(#REF!=$A$6)*#REF!) ->  | Z6: =SUMPRODUCT((#REF!=Z$3)*(#REF!=$A$6)*#REF!) ->  | AA6: =SUM(C6:N6) -> 0
A7: OTROS SAN VICENTE | C7: 243.77 | D7: 243.77 | E7: 243.77 | F7: 243.77 | G7: 243.77 | H7: 260 | I7: 260 | J7: 260 | K7: 260 | L7: 260 | M7: 260 | N7: 260 | O7: =SUMPRODUCT((#REF!=O$3)*(#REF!=$A$7)*#REF!) ->  | P7: =SUMPRODUCT((#REF!=P$3)*(#REF!=$A$7)*#REF!) ->  | Q7: =SUMPRODUCT((#REF!=Q$3)*(#REF!=$A$7)*#REF!) ->  | R7: =SUMPRODUCT((#REF!=R$3)*(#REF!=$A$7)*#REF!) ->  | S7: =SUMPRODUCT((#REF!=S$3)*(#REF!=$A$7)*#REF!) ->  | T7: =SUMPRODUCT((#REF!=T$3)*(#REF!=$A$7)*#REF!) ->  | U7: =SUMPRODUCT((#REF!=U$3)*(#REF!=$A$7)*#REF!) ->  | V7: =SUMPRODUCT((#REF!=V$3)*(#REF!=$A$7)*#REF!) ->  | W7: =SUMPRODUCT((#REF!=W$3)*(#REF!=$A$7)*#REF!) ->  | X7: =SUMPRODUCT((#REF!=X$3)*(#REF!=$A$7)*#REF!) ->  | Y7: =SUMPRODUCT((#REF!=Y$3)*(#REF!=$A$7)*#REF!) ->  | Z7: =SUMPRODUCT((#REF!=Z$3)*(#REF!=$A$7)*#REF!) ->  | AA7: =SUM(C7:N7) -> 3038.85
C8: 421.05 | D8: 421.05 | E8: 421.05 | F8: 421.05 | G8: 421.05 | H8: 450 | I8: 450 | J8: 450 | K8: 450 | L8: 450 | M8: 450 | N8: 450 | AA8: =SUM(C8:N8) -> 5255.25
C9: =SUM(C5:C8) -> 664.82 | D9: =SUM(D5:D8) -> 1194.82 | E9: =SUM(E5:E8) -> 664.82 | F9: =SUM(F5:F8) -> 664.82 | G9: =SUM(G5:G8) -> 664.82 | H9: =SUM(H5:H8) -> 710 | I9: =SUM(I5:I8) -> 710 | J9: =SUM(J5:J8) -> 710 | K9: =SUM(K5:K8) -> 710 | L9: =SUM(L5:L8) -> 710 | M9: =SUM(M5:M8) -> 710 | N9: =SUM(N5:N8) -> 710 | O9: =SUM(O5:O8) ->  | P9: =SUM(P5:P8) ->  | Q9: =SUM(Q5:Q8) ->  | R9: =SUM(R5:R8) ->  | S9: =SUM(S5:S8) ->  | T9: =SUM(T5:T8) ->  | U9: =SUM(U5:U8) ->  | V9: =SUM(V5:V8) ->  | W9: =SUM(W5:W8) ->  | X9: =SUM(X5:X8) ->  | Y9: =SUM(Y5:Y8) ->  | Z9: =SUM(Z5:Z8) -> 
A11: HIP. CADIZ 38 | E11: 150 | O11: =SUMPRODUCT((#REF!=O$3)*(#REF!=$A11)*#REF!) ->  | P11: =SUMPRODUCT((#REF!=P$3)*(#REF!=$A11)*#REF!) ->  | Q11: =SUMPRODUCT((#REF!=Q$3)*(#REF!=$A11)*#REF!) ->  | R11: =SUMPRODUCT((#REF!=R$3)*(#REF!=$A11)*#REF!) ->  | S11: =SUMPRODUCT((#REF!=S$3)*(#REF!=$A11)*#REF!) ->  | T11: =SUMPRODUCT((#REF!=T$3)*(#REF!=$A11)*#REF!) ->  | U11: =SUMPRODUCT((#REF!=U$3)*(#REF!=$A11)*#REF!) ->  | V11: =SUMPRODUCT((#REF!=V$3)*(#REF!=$A11)*#REF!) ->  | W11: =SUMPRODUCT((#REF!=W$3)*(#REF!=$A11)*#REF!) ->  | X11: =SUMPRODUCT((#REF!=X$3)*(#REF!=$A11)*#REF!) ->  | Y11: =SUMPRODUCT((#REF!=Y$3)*(#REF!=$A11)*#REF!) ->  | Z11: =SUMPRODUCT((#REF!=Z$3)*(#REF!=$A11)*#REF!) ->  | AA11: =SUM(C11:N11) -> 150
A12: CDAD. CADIZ 38 | O12: =SUMPRODUCT((#REF!=O$3)*(#REF!=$A12)*#REF!) ->  | P12: =SUMPRODUCT((#REF!=P$3)*(#REF!=$A12)*#REF!) ->  | Q12: =SUMPRODUCT((#REF!=Q$3)*(#REF!=$A12)*#REF!) ->  | R12: =SUMPRODUCT((#REF!=R$3)*(#REF!=$A12)*#REF!) ->  | S12: =SUMPRODUCT((#REF!=S$3)*(#REF!=$A12)*#REF!) ->  | T12: =SUMPRODUCT((#REF!=T$3)*(#REF!=$A12)*#REF!) ->  | U12: =SUMPRODUCT((#REF!=U$3)*(#REF!=$A12)*#REF!) ->  | V12: =SUMPRODUCT((#REF!=V$3)*(#REF!=$A12)*#REF!) ->  | W12: =SUMPRODUCT((#REF!=W$3)*(#REF!=$A12)*#REF!) ->  | X12: =SUMPRODUCT((#REF!=X$3)*(#REF!=$A12)*#REF!) ->  | Y12: =SUMPRODUCT((#REF!=Y$3)*(#REF!=$A12)*#REF!) ->  | Z12: =SUMPRODUCT((#REF!=Z$3)*(#REF!=$A12)*#REF!) ->  | AA12: =SUM(C12:N12) -> 0
A13: OTROS CADIZ 38 | C13: 641.1 | D13: 640 | E13: 640 | F13: 640 | G13: 640 | H13: 640 | I13: 640 | J13: 640 | K13: 640 | L13: 640 | M13: 640 | N13: 640 | O13: =SUMPRODUCT((#REF!=O$3)*(#REF!=$A13)*#REF!) ->  | P13: =SUMPRODUCT((#REF!=P$3)*(#REF!=$A13)*#REF!) ->  | Q13: =SUMPRODUCT((#REF!=Q$3)*(#REF!=$A13)*#REF!) ->  | R13: =SUMPRODUCT((#REF!=R$3)*(#REF!=$A13)*#REF!) ->  | S13: =SUMPRODUCT((#REF!=S$3)*(#REF!=$A13)*#REF!) ->  | T13: =SUMPRODUCT((#REF!=T$3)*(#REF!=$A13)*#REF!) ->  | U13: =SUMPRODUCT((#REF!=U$3)*(#REF!=$A13)*#REF!) ->  | V13: =SUMPRODUCT((#REF!=V$3)*(#REF!=$A13)*#REF!) ->  | W13: =SUMPRODUCT((#REF!=W$3)*(#REF!=$A13)*#REF!) ->  | X13: =SUMPRODUCT((#REF!=X$3)*(#REF!=$A13)*#REF!) ->  | Y13: =SUMPRODUCT((#REF!=Y$3)*(#REF!=$A13)*#REF!) ->  | Z13: =SUMPRODUCT((#REF!=Z$3)*(#REF!=$A13)*#REF!) ->  | AA13: =SUM(C13:N13) -> 7681.1
F14: 100 | AA14: =SUM(C14:N14) -> 100 | AB14: =SUM(AA11:AA14) -> 7931.1
C15: =SUM(C11:C14) -> 641.1 | D15: =SUM(D11:D14) -> 640 | E15: =SUM(E11:E14) -> 790 | F15: =SUM(F11:F14) -> 740 | G15: 640 | H15: 640 | I15: 640 | J15: 640 | K15: 640 | L15: 640 | M15: 640 | N15: =SUM(N11:N14) -> 640 | O15: =SUM(O11:O14) ->  | V15: =SUM(V11:V14) ->  | W15: =SUM(W11:W14) ->  | X15: =SUM(X11:X14) ->  | Y15: =SUM(Y11:Y14) ->  | Z15: =SUM(Z11:Z14) -> 
A17: HIP. CADIZ 77 | C17: 0 | D17: 0 | E17: 0 | F17: 0 | G17: 0 | H17: 0 | I17: 0 | J17: 0 | K17: 0 | L17: 0 | M17: 0 | N17: 0 | O17: =SUMPRODUCT((#REF!=O$3)*(#REF!=$A17)*#REF!) ->  | P17: =SUMPRODUCT((#REF!=P$3)*(#REF!=$A17)*#REF!) ->  | Q17: =SUMPRODUCT((#REF!=Q$3)*(#REF!=$A17)*#REF!) ->  | R17: =SUMPRODUCT((#REF!=R$3)*(#REF!=$A17)*#REF!) ->  | S17: =SUMPRODUCT((#REF!=S$3)*(#REF!=$A17)*#REF!) ->  | T17: =SUMPRODUCT((#REF!=T$3)*(#REF!=$A17)*#REF!) ->  | U17: =SUMPRODUCT((#REF!=U$3)*(#REF!=$A17)*#REF!) ->  | V17: =SUMPRODUCT((#REF!=V$3)*(#REF!=$A17)*#REF!) ->  | W17: =SUMPRODUCT((#REF!=W$3)*(#REF!=$A17)*#REF!) ->  | X17: =SUMPRODUCT((#REF!=X$3)*(#REF!=$A17)*#REF!) ->  | Y17: =SUMPRODUCT((#REF!=Y$3)*(#REF!=$A17)*#REF!) ->  | Z17: =SUMPRODUCT((#REF!=Z$3)*(#REF!=$A17)*#REF!) ->  | AA17: =SUM(C17:N17) -> 0
A18: CDAD. CADIZ 77 | D18: 0 | F18: ='[2]CALENDARIO PAGOS'!F8 -> 700 | G18: ='[2]CALENDARIO PAGOS'!G8 -> 700 | H18: ='[2]CALENDARIO PAGOS'!H8 -> 700 | I18: ='[2]CALENDARIO PAGOS'!I8 -> 700 | J18: ='[2]CALENDARIO PAGOS'!J8 -> 700 | K18: ='[2]CALENDARIO PAGOS'!K8 -> 700 | L18: ='[2]CALENDARIO PAGOS'!L8 -> 700 | M18: ='[2]CALENDARIO PAGOS'!M8 -> 700 | N18: ='[2]CALENDARIO PAGOS'!N8 -> 700 | O18: =SUMPRODUCT((#REF!=O$3)*(#REF!=$A18)*#REF!) ->  | P18: =SUMPRODUCT((#REF!=P$3)*(#REF!=$A18)*#REF!) ->  | Q18: =SUMPRODUCT((#REF!=Q$3)*(#REF!=$A18)*#REF!) ->  | R18: =SUMPRODUCT((#REF!=R$3)*(#REF!=$A18)*#REF!) ->  | S18: =SUMPRODUCT((#REF!=S$3)*(#REF!=$A18)*#REF!) ->  | T18: =SUMPRODUCT((#REF!=T$3)*(#REF!=$A18)*#REF!) ->  | U18: =SUMPRODUCT((#REF!=U$3)*(#REF!=$A18)*#REF!) ->  | V18: =SUMPRODUCT((#REF!=V$3)*(#REF!=$A18)*#REF!) ->  | W18: =SUMPRODUCT((#REF!=W$3)*(#REF!=$A18)*#REF!) ->  | X18: =SUMPRODUCT((#REF!=X$3)*(#REF!=$A18)*#REF!) ->  | Y18: =SUMPRODUCT((#REF!=Y$3)*(#REF!=$A18)*#REF!) ->  | Z18: =SUMPRODUCT((#REF!=Z$3)*(#REF!=$A18)*#REF!) ->  | AA18: =SUM(C18:N18) -> 6300
A19: OTROS CADIZ 77 | E19: 0 | O19: =SUMPRODUCT((#REF!=O$3)*(#REF!=$A19)*#REF!) ->  | P19: =SUMPRODUCT((#REF!=P$3)*(#REF!=$A19)*#REF!) ->  | Q19: =SUMPRODUCT((#REF!=Q$3)*(#REF!=$A19)*#REF!) ->  | R19: =SUMPRODUCT((#REF!=R$3)*(#REF!=$A19)*#REF!) ->  | S19: =SUMPRODUCT((#REF!=S$3)*(#REF!=$A19)*#REF!) ->  | T19: =SUMPRODUCT((#REF!=T$3)*(#REF!=$A19)*#REF!) ->  | U19: =SUMPRODUCT((#REF!=U$3)*(#REF!=$A19)*#REF!) ->  | V19: =SUMPRODUCT((#REF!=V$3)*(#REF!=$A19)*#REF!) ->  | W19: =SUMPRODUCT((#REF!=W$3)*(#REF!=$A19)*#REF!) ->  | X19: =SUMPRODUCT((#REF!=X$3)*(#REF!=$A19)*#REF!) ->  | Y19: =SUMPRODUCT((#REF!=Y$3)*(#REF!=$A19)*#REF!) ->  | Z19: =SUMPRODUCT((#REF!=Z$3)*(#REF!=$A19)*#REF!) ->  | AA19: =SUM(C19:N19) -> 0 | AB19: =SUM(AA17:AA19) -> 6300
C20: =SUM(C17:C19) -> 0 | D20: =SUM(D17:D19) -> 0 | E20: =SUM(E17:E19) -> 0 | F20: 700 | G20: 700 | H20: 700 | I20: 700 | J20: 700 | K20: 700 | L20: 700 | M20: 700 | N20: =SUM(N17:N19) -> 700 | O20: =SUM(O17:O19) ->  | V20: =SUM(V17:V19) ->  | W20: =SUM(W17:W19) ->  | X20: =SUM(X17:X19) ->  | Y20: =SUM(Y17:Y19) ->  | Z20: =SUM(Z17:Z19) -> 
A22: CDAD. SUECA 64 | E22: 250 | L22: 31.4 | N22: 73.99 | O22: =SUMPRODUCT((#REF!=O$3)*(#REF!=$A22)*#REF!) ->  | P22: =SUMPRODUCT((#REF!=P$3)*(#REF!=$A22)*#REF!) ->  | Q22: =SUMPRODUCT((#REF!=Q$3)*(#REF!=$A22)*#REF!) ->  | R22: =SUMPRODUCT((#REF!=R$3)*(#REF!=$A22)*#REF!) ->  | S22: =SUMPRODUCT((#REF!=S$3)*(#REF!=$A22)*#REF!) ->  | T22: =SUMPRODUCT((#REF!=T$3)*(#REF!=$A22)*#REF!) ->  | U22: =SUMPRODUCT((#REF!=U$3)*(#REF!=$A22)*#REF!) ->  | V22: =SUMPRODUCT((#REF!=V$3)*(#REF!=$A22)*#REF!) ->  | W22: =SUMPRODUCT((#REF!=W$3)*(#REF!=$A22)*#REF!) ->  | X22: =SUMPRODUCT((#REF!=X$3)*(#REF!=$A22)*#REF!) ->  | Y22: =SUMPRODUCT((#REF!=Y$3)*(#REF!=$A22)*#REF!) ->  | Z22: =SUMPRODUCT((#REF!=Z$3)*(#REF!=$A22)*#REF!) ->  | AA22: =SUM(C22:N22) -> 355.39
AA23: =SUM(C23:N23) -> 0 | AB23: =SUM(AA22:AA23) -> 355.39
C24: =SUM(C22:C23) -> 0 | D24: =SUM(D22:D23) -> 0 | E24: 250 | F24: 0 | G24: 0 | H24: 0 | I24: 0 | J24: 0 | K24: 0 | L24: 31.4 | M24: 0 | N24: =SUM(N22:N23) -> 73.99 | O24: =SUM(O22:O23) ->  | V24: =SUM(V22:V23) ->  | W24: =SUM(W22:W23) ->  | X24: =SUM(X22:X23) ->  | Y24: =SUM(Y22:Y23) ->  | Z24: =SUM(Z22:Z23) -> 
C27: =C9+C15+C20+C24 -> 1305.92 | D27: =D9+D15+D20+D24 -> 1834.82 | E27: 1704.82 | F27: 2104.82 | G27: 2004.82 | H27: 2050 | I27: 2050 | J27: 2050 | K27: 2050 | L27: =L9+L15+L20+L24 -> 2081.4 | M27: 2050 | N27: 2123.99 | O27: =O9+O15+O20+O24 ->  | AA27: =AVERAGE(C27:N27) -> 1950.8825 | AB27: =SUM(C27:AA27) -> 

Sheet suministros
A1: SUMINISTROS | D1: AÑO 2013 | O1: AÑO 2014
C2: ENERO | D2: FEBRERO | E2: MARZO | F2: ABRIL | G2: MAYO | H2: JUNIO | I2: JULIO | J2: AGOSTO | K2: SPTBRE. | L2: OCTUBRE | M2: NOVIEMBRE | N2: DICIEMBRE | O2: ENERO | P2: FEBRERO | Q2: MARZO | R2: ABRIL | S2: MAYO | T2: JUNIO | U2: JULIO | V2: AGOSTO | W2: SPTBRE. | X2: OCTUBRE | Y2: NOVIEMBRE | Z2: DICIEMBRE
O3: 1 | P3: 2 | Q3: 3 | R3: 4 | S3: 5 | T3: 6 | U3: 7 | V3: 8 | W3: 9 | X3: 10 | Y3: 11 | Z3: 12
A5: AGUA CADIZ 77 | C5: 85.85 | O5: =SUMPRODUCT((#REF!=O$3)*(#REF!=$A5)*#REF!) ->  | P5: =SUMPRODUCT((#REF!=P$3)*(#REF!=$A5)*#REF!) ->  | Q5: =SUMPRODUCT((#REF!=Q$3)*(#REF!=$A5)*#REF!) ->  | R5: =SUMPRODUCT((#REF!=R$3)*(#REF!=$A5)*#REF!) ->  | S5: =SUMPRODUCT((#REF!=S$3)*(#REF!=$A5)*#REF!) ->  | T5: =SUMPRODUCT((#REF!=T$3)*(#REF!=$A5)*#REF!) ->  | U5: =SUMPRODUCT((#REF!=U$3)*(#REF!=$A5)*#REF!) ->  | V5: =SUMPRODUCT((#REF!=V$3)*(#REF!=$A5)*#REF!) ->  | W5: =SUMPRODUCT((#REF!=W$3)*(#REF!=$A5)*#REF!) ->  | X5: =SUMPRODUCT((#REF!=X$3)*(#REF!=$A5)*#REF!) ->  | Y5: =SUMPRODUCT((#REF!=Y$3)*(#REF!=$A5)*#REF!) ->  | Z5: =SUMPRODUCT((#REF!=Z$3)*(#REF!=$A5)*#REF!) ->  | AB5: =SUM(C5:Z5) -> 
A6: ELEC. CADIZ 77 | O6: =SUMPRODUCT((#REF!=O$3)*(#REF!=$A6)*#REF!) ->  | P6: =SUMPRODUCT((#REF!=P$3)*(#REF!=$A6)*#REF!) ->  | Q6: =SUMPRODUCT((#REF!=Q$3)*(#REF!=$A6)*#REF!) ->  | R6: =SUMPRODUCT((#REF!=R$3)*(#REF!=$A6)*#REF!) ->  | S6: =SUMPRODUCT((#REF!=S$3)*(#REF!=$A6)*#REF!) ->  | T6: =SUMPRODUCT((#REF!=T$3)*(#REF!=$A6)*#REF!) ->  | U6: =SUMPRODUCT((#REF!=U$3)*(#REF!=$A6)*#REF!) ->  | V6: =SUMPRODUCT((#REF!=V$3)*(#REF!=$A6)*#REF!) ->  | W6: =SUMPRODUCT((#REF!=W$3)*(#REF!=$A6)*#REF!) ->  | X6: =SUMPRODUCT((#REF!=X$3)*(#REF!=$A6)*#REF!) ->  | Y6: =SUMPRODUCT((#REF!=Y$3)*(#REF!=$A6)*#REF!) ->  | Z6: =SUMPRODUCT((#REF!=Z$3)*(#REF!=$A6)*#REF!) -> 
A7: GAS CADIZ 77 | C7: 144.22 | D7: 83.68 | E7: 200 | F7: 100 | G7: 80 | H7: 70 | I7: 70 | J7: 70 | K7: 70 | L7: 60 | M7: 91.17 | O7: =SUMPRODUCT((#REF!=O$3)*(#REF!=$A7)*#REF!) ->  | P7: =SUMPRODUCT((#REF!=P$3)*(#REF!=$A7)*#REF!) ->  | Q7: =SUMPRODUCT((#REF!=Q$3)*(#REF!=$A7)*#REF!) ->  | R7: =SUMPRODUCT((#REF!=R$3)*(#REF!=$A7)*#REF!) ->  | S7: =SUMPRODUCT((#REF!=S$3)*(#REF!=$A7)*#REF!) ->  | T7: =SUMPRODUCT((#REF!=T$3)*(#REF!=$A7)*#REF!) ->  | U7: =SUMPRODUCT((#REF!=U$3)*(#REF!=$A7)*#REF!) ->  | V7: =SUMPRODUCT((#REF!=V$3)*(#REF!=$A7)*#REF!) ->  | W7: =SUMPRODUCT((#REF!=W$3)*(#REF!=$A7)*#REF!) ->  | X7: =SUMPRODUCT((#REF!=X$3)*(#REF!=$A7)*#REF!) ->  | Y7: =SUMPRODUCT((#REF!=Y$3)*(#REF!=$A7)*#REF!) ->  | Z7: =SUMPRODUCT((#REF!=Z$3)*(#REF!=$A7)*#REF!) ->  | AB7: =SUM(C7:V7) -> 
A9: AGUA CADIZ 38 | M9: 165.12 | O9: =SUMPRODUCT((#REF!=O$3)*(#REF!=$A9)*#REF!) ->  | P9: =SUMPRODUCT((#REF!=P$3)*(#REF!=$A9)*#REF!) ->  | Q9: =SUMPRODUCT((#REF!=Q$3)*(#REF!=$A9)*#REF!) ->  | R9: =SUMPRODUCT((#REF!=R$3)*(#REF!=$A9)*#REF!) ->  | S9: =SUMPRODUCT((#REF!=S$3)*(#REF!=$A9)*#REF!) ->  | T9: =SUMPRODUCT((#REF!=T$3)*(#REF!=$A9)*#REF!) ->  | U9: =SUMPRODUCT((#REF!=U$3)*(#REF!=$A9)*#REF!) ->  | V9: =SUMPRODUCT((#REF!=V$3)*(#REF!=$A9)*#REF!) ->  | W9: =SUMPRODUCT((#REF!=W$3)*(#REF!=$A9)*#REF!) ->  | X9: =SUMPRODUCT((#REF!=X$3)*(#REF!=$A9)*#REF!) ->  | Y9: =SUMPRODUCT((#REF!=Y$3)*(#REF!=$A9)*#REF!) ->  | Z9: =SUMPRODUCT((#REF!=Z$3)*(#REF!=$A9)*#REF!) ->  | AB9: =SUM(C9:N9) -> 165.12
A10: ELEC. CADIZ 38 | O10: =SUMPRODUCT((#REF!=O$3)*(#REF!=$A10)*#REF!) ->  | P10: =SUMPRODUCT((#REF!=P$3)*(#REF!=$A10)*#REF!) ->  | Q10: =SUMPRODUCT((#REF!=Q$3)*(#REF!=$A10)*#REF!) ->  | R10: =SUMPRODUCT((#REF!=R$3)*(#REF!=$A10)*#REF!) ->  | S10: =SUMPRODUCT((#REF!=S$3)*(#REF!=$A10)*#REF!) ->  | T10: =SUMPRODUCT((#REF!=T$3)*(#REF!=$A10)*#REF!) ->  | U10: =SUMPRODUCT((#REF!=U$3)*(#REF!=$A10)*#REF!) ->  | V10: =SUMPRODUCT((#REF!=V$3)*(#REF!=$A10)*#REF!) ->  | W10: =SUMPRODUCT((#REF!=W$3)*(#REF!=$A10)*#REF!) ->  | X10: =SUMPRODUCT((#REF!=X$3)*(#REF!=$A10)*#REF!) ->  | Y10: =SUMPRODUCT((#REF!=Y$3)*(#REF!=$A10)*#REF!) ->  | Z10: =SUMPRODUCT((#REF!=Z$3)*(#REF!=$A10)*#REF!) -> 
A12: AGUA SAN VICENTE | O12: =SUMPRODUCT((#REF!=O$3)*(#REF!=$A12)*#REF!) ->  | P12: =SUMPRODUCT((#REF!=P$3)*(#REF!=$A12)*#REF!) ->  | Q12: =SUMPRODUCT((#REF!=Q$3)*(#REF!=$A12)*#REF!) ->  | R12: =SUMPRODUCT((#REF!=R$3)*(#REF!=$A12)*#REF!) ->  | S12: =SUMPRODUCT((#REF!=S$3)*(#REF!=$A12)*#REF!) ->  | T12: =SUMPRODUCT((#REF!=T$3)*(#REF!=$A12)*#REF!) ->  | U12: =SUMPRODUCT((#REF!=U$3)*(#REF!=$A12)*#REF!) ->  | V12: =SUMPRODUCT((#REF!=V$3)*(#REF!=$A12)*#REF!) ->  | W12: =SUMPRODUCT((#REF!=W$3)*(#REF!=$A12)*#REF!) ->  | X12: =SUMPRODUCT((#REF!=X$3)*(#REF!=$A12)*#REF!) ->  | Y12: =SUMPRODUCT((#REF!=Y$3)*(#REF!=$A12)*#REF!) ->  | Z12: =SUMPRODUCT((#REF!=Z$3)*(#REF!=$A12)*#REF!) -> 
A13: ELEC. SAN VICENTE | O13: =SUMPRODUCT((#REF!=O$3)*(#REF!=$A13)*#REF!) ->  | P13: =SUMPRODUCT((#REF!=P$3)*(#REF!=$A13)*#REF!) ->  | Q13: =SUMPRODUCT((#REF!=Q$3)*(#REF!=$A13)*#REF!) ->  | R13: =SUMPRODUCT((#REF!=R$3)*(#REF!=$A13)*#REF!) ->  | S13: =SUMPRODUCT((#REF!=S$3)*(#REF!=$A13)*#REF!) ->  | T13: =SUMPRODUCT((#REF!=T$3)*(#REF!=$A13)*#REF!) ->  | U13: =SUMPRODUCT((#REF!=U$3)*(#REF!=$A13)*#REF!) ->  | V13: =SUMPRODUCT((#REF!=V$3)*(#REF!=$A13)*#REF!) ->  | W13: =SUMPRODUCT((#REF!=W$3)*(#REF!=$A13)*#REF!) ->  | X13: =SUMPRODUCT((#REF!=X$3)*(#REF!=$A13)*#REF!) ->  | Y13: =SUMPRODUCT((#REF!=Y$3)*(#REF!=$A13)*#REF!) ->  | Z13: =SUMPRODUCT((#REF!=Z$3)*(#REF!=$A13)*#REF!) -> 
C14: =SUM(C5:C13) -> 230.07 | D14: =SUM(D5:D13) -> 83.68 | E14: 200 | F14: 100 | G14: 80 | H14: 70 | I14: =SUM(I5:I13) -> 70 | J14: 70 | K14: 70 | L14: =SUM(L5:L13) -> 60 | M14: 256.29 | N14: 0 | O14: =SUM(O5:O13) ->  | P14: =SUM(P5:P13) ->  | AB14: =SUM(C14:AA14) -> 

Sheet aguas
A1: AGUA | C1: AÑO 2013 | O1: AÑO 2014
C3: ENERO | D3: FEBRERO | E3: MARZO | F3: ABRIL | G3: MAYO | H3: JUNIO | I3: JULIO | J3: AGOSTO | K3: SPTBRE. | L3: OCTUBRE | M3: NOVIEMBRE | N3: DICIEMBRE | O3: ENERO | P3: FEBRERO | Q3: MARZO | R3: ABRIL | S3: MAYO | T3: JUNIO | U3: JULIO | V3: AGOSTO | W3: SPTBRE. | X3: OCTUBRE | Y3: NOVIEMBRE | Z3: DICIEMBRE
A6: san vicente 222 | C6: 47.35 | E6: 48 | G6: 48 | I6: 48 | K6: 48 | M6: 48 | O6: 47.35 | S6: 54.91 | V6: 48.59 | AB6: =SUM(C6:N6) -> 287.35
A9: cadiz 38 | D9: 40.01 | F9: 45 | H9: 45 | J9: 45 | L9: 45 | N9: 45 | P9: 50.14 | R9: 46.6 | T9: 45.34 | V9: 45.34 | AB9: =SUM(C9:N9) -> 265.01
AB10: =SUM(C10:N10) -> 0
A11: cadiz 77 | R11: 38.77 | T11: 41.3 | V11: 38.77 | AB11: =SUM(C11:N11) -> 0
AB12: =SUM(C12:N12) -> 0
C13: =SUM(C6:C12) -> 47.35 | D13: =SUM(D6:D12) -> 40.01 | E13: 48 | F13: 45 | G13: 48 | H13: 45 | I13: 48 | J13: 45 | K13: 48 | L13: 45 | M13: 48 | N13: 45 | O13: =SUM(O6:O12) -> 47.35 | P13: 50.14 | Q13: 0 | R13: 85.37 | S13: 54.91 | T13: 86.64 | U13: 0 | V13: =SUM(V6:V12) -> 132.7 | W13: =SUM(W6:W12) -> 0 | X13: =SUM(X6:X12) -> 0 | Y13: =SUM(Y6:Y12) -> 0 | Z13: =SUM(Z6:Z12) -> 0 | AA13: =AVERAGE(C13:N13) -> 46.03 | AB13: =SUM(C13:AA13) -> 1055.5

Sheet seguros
A1: SEGUROS | C1: AÑO 2013 | O1: AÑO 2014
C2: ENERO | D2: FEBRERO | E2: MARZO | F2: ABRIL | G2: MAYO | H2: JUNIO | I2: JULIO | J2: AGOSTO | K2: SPTBRE. | L2: OCTUBRE | M2: NOVIEMBRE | N2: DICIEMBRE | O2: ENERO | P2: FEBRERO | Q2: MARZO | R2: ABRIL | S2: MAYO | T2: JUNIO | U2: JULIO | V2: AGOSTO | W2: SPTBRE. | X2: OCTUBRE | Y2: NOVIEMBRE | Z2: DICIEMBRE
O3: 1 | P3: 2 | Q3: 3 | R3: 4 | S3: 5 | T3: 6 | U3: 7 | V3: 8 | W3: 9 | X3: 10 | Y3: 11 | Z3: 12
A5: HNA CARLOS | C5: =217.12+34.97 -> 252.09 | D5: 215.68 | E5: 230 | F5: 230 | G5: 230 | H5: 230 | I5: 230 | J5: 230 | K5: 230 | L5: 230 | M5: 230 | O5: =SUMPRODUCT((#REF!=O$3)*(#REF!=$A5)*#REF!) ->  | P5: =SUMPRODUCT((#REF!=P$3)*(#REF!=$A5)*#REF!) ->  | Q5: =SUMPRODUCT((#REF!=Q$3)*(#REF!=$A5)*#REF!) ->  | R5: =SUMPRODUCT((#REF!=R$3)*(#REF!=$A5)*#REF!) ->  | S5: =SUMPRODUCT((#REF!=S$3)*(#REF!=$A5)*#REF!) ->  | T5: =SUMPRODUCT((#REF!=T$3)*(#REF!=$A5)*#REF!) ->  | U5: =SUMPRODUCT((#REF!=U$3)*(#REF!=$A5)*#REF!) ->  | V5: =SUMPRODUCT((#REF!=V$3)*(#REF!=$A5)*#REF!) ->  | W5: =SUMPRODUCT((#REF!=W$3)*(#REF!=$A5)*#REF!) ->  | X5: =SUMPRODUCT((#REF!=X$3)*(#REF!=$A5)*#REF!) ->  | Y5: =SUMPRODUCT((#REF!=Y$3)*(#REF!=$A5)*#REF!) ->  | Z5: =SUMPRODUCT((#REF!=Z$3)*(#REF!=$A5)*#REF!) ->  | AA5: =SUM(C5:V5) -> 
A6: HNA LUCIAS | C6: 245.78 | F6: 245.78 | I6: 245.78 | L6: 245.78 | O6: =SUMPRODUCT((#REF!=O$3)*(#REF!=$A6)*#REF!) ->  | P6: =SUMPRODUCT((#REF!=P$3)*(#REF!=$A6)*#REF!) ->  | Q6: =SUMPRODUCT((#REF!=Q$3)*(#REF!=$A6)*#REF!) ->  | R6: =SUMPRODUCT((#REF!=R$3)*(#REF!=$A6)*#REF!) ->  | S6: =SUMPRODUCT((#REF!=S$3)*(#REF!=$A6)*#REF!) ->  | T6: =SUMPRODUCT((#REF!=T$3)*(#REF!=$A6)*#REF!) ->  | U6: =SUMPRODUCT((#REF!=U$3)*(#REF!=$A6)*#REF!) ->  | V6: =SUMPRODUCT((#REF!=V$3)*(#REF!=$A6)*#REF!) ->  | W6: =SUMPRODUCT((#REF!=W$3)*(#REF!=$A6)*#REF!) ->  | X6: =SUMPRODUCT((#REF!=X$3)*(#REF!=$A6)*#REF!) ->  | Y6: =SUMPRODUCT((#REF!=Y$3)*(#REF!=$A6)*#REF!) ->  | Z6: =SUMPRODUCT((#REF!=Z$3)*(#REF!=$A6)*#REF!) ->  | AA6: =SUM(C6:N6) -> 983.12
A7: ASEMAS FIJO | O7: =SUMPRODUCT((#REF!=O$3)*(#REF!=$A7)*#REF!) ->  | P7: =SUMPRODUCT((#REF!=P$3)*(#REF!=$A7)*#REF!) ->  | Q7: =SUMPRODUCT((#REF!=Q$3)*(#REF!=$A7)*#REF!) ->  | R7: =SUMPRODUCT((#REF!=R$3)*(#REF!=$A7)*#REF!) ->  | S7: =SUMPRODUCT((#REF!=S$3)*(#REF!=$A7)*#REF!) ->  | T7: =SUMPRODUCT((#REF!=T$3)*(#REF!=$A7)*#REF!) ->  | U7: =SUMPRODUCT((#REF!=U$3)*(#REF!=$A7)*#REF!) ->  | V7: =SUMPRODUCT((#REF!=V$3)*(#REF!=$A7)*#REF!) ->  | W7: =SUMPRODUCT((#REF!=W$3)*(#REF!=$A7)*#REF!) ->  | X7: =SUMPRODUCT((#REF!=X$3)*(#REF!=$A7)*#REF!) ->  | Y7: =SUMPRODUCT((#REF!=Y$3)*(#REF!=$A7)*#REF!) ->  | Z7: =SUMPRODUCT((#REF!=Z$3)*(#REF!=$A7)*#REF!) ->  | AA7: =SUM(C7:N7) -> 0 | AB7: =SUM(AA5:AA7) -> 
A8: ASEMAS POR OBRA | C8: 46.33 | D8: 46.33 | E8: 46.33 | F8: 46.33 | G8: 46.33 | H8: 46.33 | I8: 46.33 | J8: 46.33 | K8: 46.33 | L8: 46.33 | M8: 46.33 | N8: 46.33 | O8: =SUMPRODUCT((#REF!=O$3)*(#REF!=$A8)*#REF!) ->  | P8: =SUMPRODUCT((#REF!=P$3)*(#REF!=$A8)*#REF!) ->  | Q8: =SUMPRODUCT((#REF!=Q$3)*(#REF!=$A8)*#REF!) ->  | R8: =SUMPRODUCT((#REF!=R$3)*(#REF!=$A8)*#REF!) ->  | S8: =SUMPRODUCT((#REF!=S$3)*(#REF!=$A8)*#REF!) ->  | T8: =SUMPRODUCT((#REF!=T$3)*(#REF!=$A8)*#REF!) ->  | U8: =SUMPRODUCT((#REF!=U$3)*(#REF!=$A8)*#REF!) ->  | V8: =SUMPRODUCT((#REF!=V$3)*(#REF!=$A8)*#REF!) ->  | W8: =SUMPRODUCT((#REF!=W$3)*(#REF!=$A8)*#REF!) ->  | X8: =SUMPRODUCT((#REF!=X$3)*(#REF!=$A8)*#REF!) ->  | Y8: =SUMPRODUCT((#REF!=Y$3)*(#REF!=$A8)*#REF!) ->  | Z8: =SUMPRODUCT((#REF!=Z$3)*(#REF!=$A8)*#REF!) -> 
C9: 256.72 | D9: 256.72 | E9: 256.72 | N9: 0 | AA9: =SUM(C9:U9) -> 770.16
A10: SEG. SOCIAL | C10: 179.96 | D10: 179.96 | E10: 179.96 | F10: 179.96 | G10: 179.96 | H10: 179.96 | I10: 179.96 | J10: 179.96 | K10: 179.96 | L10: 179.96 | M10: 179.96 | N10: 179.96 | O10: =SUMPRODUCT((#REF!=O$3)*(#REF!=$A10)*#REF!) ->  | P10: =SUMPRODUCT((#REF!=P$3)*(#REF!=$A10)*#REF!) ->  | Q10: =SUMPRODUCT((#REF!=Q$3)*(#REF!=$A10)*#REF!) ->  | R10: =SUMPRODUCT((#REF!=R$3)*(#REF!=$A10)*#REF!) ->  | S10: =SUMPRODUCT((#REF!=S$3)*(#REF!=$A10)*#REF!) ->  | T10: =SUMPRODUCT((#REF!=T$3)*(#REF!=$A10)*#REF!) ->  | U10: =SUMPRODUCT((#REF!=U$3)*(#REF!=$A10)*#REF!) ->  | V10: =SUMPRODUCT((#REF!=V$3)*(#REF!=$A10)*#REF!) ->  | W10: =SUMPRODUCT((#REF!=W$3)*(#REF!=$A10)*#REF!) ->  | X10: =SUMPRODUCT((#REF!=X$3)*(#REF!=$A10)*#REF!) ->  | Y10: =SUMPRODUCT((#REF!=Y$3)*(#REF!=$A10)*#REF!) ->  | Z10: =SUMPRODUCT((#REF!=Z$3)*(#REF!=$A10)*#REF!) ->  | AA10: =SUM(C10:N10) -> 2159.52
C11: 26.34 | AA11: =SUM(C11:N11) -> 26.34 | AB11: =SUM(AA9:AA11) -> 2956.02
A12: OTROS SEGUROS | C12: 69.19 | D12: 111.95 | E12: 111.95 | F12: 111.95 | G12: 111.95 | H12: 111.95 | I12: 111.95 | J12: 111.95 | K12: 111.95 | L12: 111.95 | M12: 111.95 | N12: 111.95 | O12: =SUMPRODUCT((#REF!=O$3)*(#REF!=$A12)*#REF!) ->  | P12: =SUMPRODUCT((#REF!=P$3)*(#REF!=$A12)*#REF!) ->  | Q12: =SUMPRODUCT((#REF!=Q$3)*(#REF!=$A12)*#REF!) ->  | R12: =SUMPRODUCT((#REF!=R$3)*(#REF!=$A12)*#REF!) ->  | S12: =SUMPRODUCT((#REF!=S$3)*(#REF!=$A12)*#REF!) ->  | T12: =SUMPRODUCT((#REF!=T$3)*(#REF!=$A12)*#REF!) ->  | U12: =SUMPRODUCT((#REF!=U$3)*(#REF!=$A12)*#REF!) ->  | V12: =SUMPRODUCT((#REF!=V$3)*(#REF!=$A12)*#REF!) ->  | W12: =SUMPRODUCT((#REF!=W$3)*(#REF!=$A12)*#REF!) ->  | X12: =SUMPRODUCT((#REF!=X$3)*(#REF!=$A12)*#REF!) ->  | Y12: =SUMPRODUCT((#REF!=Y$3)*(#REF!=$A12)*#REF!) ->  | Z12: =SUMPRODUCT((#REF!=Z$3)*(#REF!=$A12)*#REF!) -> 
C13: 284.57 | AA13: =SUM(C13:N13) -> 284.57
AA14: =SUM(C14:N14) -> 0 | AB14: =SUM(AA13:AA14) -> 284.57
AB17: =SUM(C17:AA17) -> 0
A20: san vicente
A21: otros | AB21: =SUM(AA20:AA21) -> 0
A23: coche | AA23: =SUM(C23:N23) -> 0
AA24: =SUM(C24:N24) -> 0
AA25: =SUM(C25:N25) -> 0 | AB25: =SUM(AA23:AA25) -> 0
C28: =SUM(C5:C25) -> 1360.98 | D28: =SUM(D5:D25) -> 810.64 | E28: 824.96 | F28: 814.02 | G28: 568.24 | H28: 568.24 | I28: 814.02 | J28: 568.24 | K28: 568.24 | L28: 814.02 | M28: 568.24 | N28: =SUM(N5:N25) -> 338.24 | O28: =SUM(O5:O25) -> 

Sheet gastos fijos
A1: GASTOS FIJOS | C1: AÑO 2013 | O1: AÑO 2014
C2: ENERO | D2: FEBRERO | E2: MARZO | F2: ABRIL | G2: MAYO | H2: JUNIO | I2: JULIO | J2: AGOSTO | K2: SPTBRE. | L2: OCTUBRE | M2: NOVIEMBRE | N2: DICIEMBRE | O2: ENERO | P2: FEBRERO | Q2: MARZO | R2: ABRIL | S2: MAYO | T2: JUNIO | U2: JULIO | V2: AGOSTO | W2: SPTBRE. | X2: OCTUBRE | Y2: NOVIEMBRE | Z2: DICIEMBRE
O3: 1 | P3: 2 | Q3: 3 | R3: 4 | S3: 5 | T3: 6 | U3: 7 | V3: 8 | W3: 9 | X3: 10 | Y3: 11 | Z3: 12
A6: TELEFONIA | C6: 0 | D6: 0 | E6: 0 | F6: 0 | G6: 0 | H6: 0 | I6: 0 | J6: 0 | K6: 0 | L6: 0 | M6: 0 | N6: 0 | O6: =SUMPRODUCT((#REF!=O$3)*(#REF!=$A6)*#REF!) ->  | P6: =SUMPRODUCT((#REF!=P$3)*(#REF!=$A6)*#REF!) ->  | Q6: =SUMPRODUCT((#REF!=Q$3)*(#REF!=$A6)*#REF!) ->  | R6: =SUMPRODUCT((#REF!=R$3)*(#REF!=$A6)*#REF!) ->  | S6: =SUMPRODUCT((#REF!=S$3)*(#REF!=$A6)*#REF!) ->  | T6: =SUMPRODUCT((#REF!=T$3)*(#REF!=$A6)*#REF!) ->  | U6: =SUMPRODUCT((#REF!=U$3)*(#REF!=$A6)*#REF!) ->  | V6: =SUMPRODUCT((#REF!=V$3)*(#REF!=$A6)*#REF!) ->  | W6: =SUMPRODUCT((#REF!=W$3)*(#REF!=$A6)*#REF!) ->  | X6: =SUMPRODUCT((#REF!=X$3)*(#REF!=$A6)*#REF!) ->  | Y6: =SUMPRODUCT((#REF!=Y$3)*(#REF!=$A6)*#REF!) ->  | Z6: =SUMPRODUCT((#REF!=Z$3)*(#REF!=$A6)*#REF!) ->  | AA6: =SUM(C6:U6) -> 
D7: 0 | F7: 0 | H7: 0 | I7: 0 | J7: 0 | K7: 50 | L7: 0 | M7: 0 | N7: 0 | O7: 0 | P7: 0 | AA7: =SUM(C14:N2007:U7) -> 
AA8: =SUM(C8:N8) -> 0 | AB8: =SUM(AA6:AA8) -> 
AA10: =SUM(C10:U10) -> 0
AA11: =SUM(C11:N11) -> 0
AA12: =SUM(C12:N12) -> 0 | AB12: =SUM(AA10:AA12) -> 0
AA14: =SUM(C14:U14) -> 0
AA15: =SUM(C15:U15) -> 0 | AB15: =SUM(AA13:AA16) -> 0
AA16: =SUM(C16:N16) -> 0
AA17: =SUM(C17:N17) -> 0
AA18: =SUM(C18:N18) -> 0
AA19: =SUM(C19:N19) -> 0 | AB19: =SUM(AA17:AA19) -> 0
C22: =SUM(C5:C19) -> 0 | D22: =SUM(D5:D19) -> 0 | E22: =SUM(E5:E19) -> 0 | F22: =SUM(F5:F19) -> 0 | G22: =SUM(G5:G19) -> 0 | H22: =SUM(H5:H19) -> 0 | I22: =SUM(I5:I19) -> 0 | J22: =SUM(J5:J19) -> 0 | K22: =SUM(K5:K19) -> 50 | L22: =SUM(L5:L19) -> 0 | M22: =SUM(M5:M19) -> 0 | N22: =SUM(N5:N19) -> 0 | O22: =SUM(O5:O19) ->  | P22: =SUM(P5:P19) ->  | Q22: =SUM(Q5:Q19) ->  | R22: =SUM(R5:R19) ->  | S22: =SUM(S5:S19) ->  | T22: =SUM(T5:T19) ->  | U22: =SUM(U5:U19) ->  | V22: =SUM(V5:V19) ->  | W22: =SUM(W5:W19) ->  | X22: =SUM(X5:X19) ->  | Y22: =SUM(Y5:Y19) ->  | Z22: =SUM(Z5:Z19) -> 
K27: nota: | L27: Todos los importes con IVA

Sheet gastos varios
A1: GASTOS VARIOS | C1: AÑO 2013 | O1: AÑO 2014
C3: ENERO | D3: FEBRERO | E3: MARZO | F3: ABRIL | G3: MAYO | H3: JUNIO | I3: JULIO | J3: AGOSTO | K3: SPTBRE. | L3: OCTUBRE | M3: NOVIEMBRE | N3: DICIEMBRE | O3: ENERO | P3: FEBRERO | Q3: MARZO | R3: ABRIL | S3: MAYO | T3: JUNIO | U3: JULIO | V3: AGOSTO | W3: SPTBRE. | X3: OCTUBRE | Y3: NOVIEMBRE | Z3: DICIEMBRE
A6: cursos carlos | AA6: =SUM(C6:N6) -> 0
A7: camara comercio | AA7: =SUM(C7:N7) -> 0
A8: yell publicidad | Y8: 0 | Z8: 0 | AA8: =SUM(C8:N8) -> 0
A9: busf | AA9: =SUM(C9:N9) -> 0
A10: qdq | AA10: 0
A11: cuota COACV | D11: 50 | AA11: 50
A12: cuota CTAV | AA12: 0
A13: club golf | D13: =72.12+72.12 -> 144.24 | AA13: 144.24
A14: antiguos alumnos | G14: 39 | AA14: 39
A15: aval | AA15: 0
A16: loteria | N16: 0 | Z16: 0 | AA16: 0
A17: hostso | D17: 24.76 | L17: 24.75 | AA17: 49.51
A18: devolucion AEAT | AA18: 0
A19: dominios | D19: 11.67 | AA19: 11.67
A20: coche/moto | L20: 125.42 | AA20: =SUM(C20:N20) -> 125.42
A21: AEAT | AA21: =SUM(C21:Z21) -> 0
A22: CYPE | AA22: =SUM(C22:Z22) -> 0
AA23: =SUM(C23:Z23) -> 0
A24: comun
N25: 150
AA28: =SUM(C28:O28) -> 0
C31: =SUM(C6:C28) -> 0 | D31: =SUM(D6:D28) -> 230.67 | E31: 0 | F31: 0 | G31: 39 | H31: 0 | I31: 0 | J31: 0 | K31: 0 | L31: =SUM(L6:L28) -> 150.17 | M31: =SUM(M6:M28) -> 0 | N31: 150 | O31: 0 | P31: 0 | Q31: 0 | R31: 0 | S31: 0 | T31: 0 | U31: 0 | V31: 0 | W31: 0 | X31: 0 | Y31: 0 | Z31: 0
C33: nota: | D33: Todos los importes con IVA

Sheet cashflow
A1: ANÁLISIS CASH-FLOW
H2: 2013 | T2: 2014
C3: agosto | D3: septiembre | E3: octubre | F3: noviembre | G3: diciembre | H3: enero | I3: febrero | J3: marzo | K3: abril | L3: mayo | M3: junio | N3: julio | O3: agosto | P3: septiembre | Q3: octubre | R3: noviembre | S3: diciembre | T3: enero | U3: febrero | V3: marzo | W3: abril | X3: mayo | Y3: junio | Z3: julio | AA3: agosto | AB3: septiembre | AC3: octubre | AD3: noviembre | AE3: diciembre
A4: + | T4: 1 | U4: 2 | V4: 3 | W4: 4 | X4: 5 | Y4: 6 | Z4: 7 | AA4: 8 | AB4: 9 | AC4: 10 | AD4: 11 | AE4: 12
A5: fondo | C5: 57467 | H5: ='[3]060113'!$F$5 -> 41407.09 | I5: ='[3]170213'!$F$5 -> 41731.37 | J5: 41500 | K5: 41500 | L5: 41500 | M5: 41500 | N5: 41500 | O5: 41500 | P5: 41500 | Q5: 41500 | R5: 41500 | S5: 41500 | T5: 0 | U5: =T5+T6 -> 0 | V5: 0 | W5: 0 | X5: 0 | Y5: 0 | Z5: 0 | AB5: 0 | AC5: 0 | AD5: 0 | AE5: 0
A6: deposito | C6: =14000+7220 -> 21220 | H6: ='[3]060113'!$F$34 -> 14137.41 | I6: 0 | J6: 0 | K6: 0 | L6: 0 | M6: 0 | N6: 0 | O6: 0 | P6: 0 | Q6: 0 | R6: 0 | S6: 0
A7: bolsa | C7: 5249 | H7: 0 | I7: 0 | J7: 0 | K7: 0 | L7: 0 | M7: 0 | N7: 0 | O7: 0 | P7: 0 | Q7: 0 | R7: 0 | S7: 0 | T7: 0 | U7: 0 | V7: 0 | W7: 0 | X7: 0 | Y7: 0 | Z7: 0 | AA7: 0 | AB7: 0 | AC7: 0 | AD7: 0 | AE7: 0
A8: liquido a inicio periodo | C8: 6089 | H8: ='[3]060113'!$F$2+'[3]060113'!$F$3+'[3]060113'!$F$4+'[3]060113'!$F$13+'[3]060113'!$F$17+'[3]060113'!$F$18+'[3]060113'!$F$22+'[3]060113'!$F$23+'[3]060113'!$F$24+'[3]060113'!$F$28+'[3]060113'!$F$33+'[3]060113'!$F$38+'[3]060113'!$F$42 -> 21426.89 | I8: ='[3]170213'!$F$2+'[3]170213'!$F$3+'[3]170213'!$F$4+'[3]170213'!$F$13+'[3]170213'!$F$17+'[3]170213'!$F$18+'[3]170213'!$F$22+'[3]170213'!$F$23+'[3]170213'!$F$24+'[3]170213'!$F$28+'[3]170213'!$F$33+'[3]170213'!$F$38+'[3]170213'!$F$42 -> 33973.52 | J8: =I8+I23 -> 34128.966 | K8: =J8+J23 -> 34087.966 | L8: 30918.4966 | M8: 28178.4366 | N8: 25445.1966 | O8: 21863.1766 | P8: 19129.9366 | Q8: 16343.6966 | R8: 13193.1066 | S8: 10270.5766 | T8: 0 | U8: =T25 ->  | AB8: =AA25 ->  | AC8: =AB25 ->  | AD8: =AC25 ->  | AE8: =AD25 -> 
A9: patrimonio total | C9: =SUM(C5:C8) -> 90025 | D9: =SUM(D5:D8) -> 0 | E9: 0 | F9: 0 | G9: =SUM(G5:G8) -> 0 | H9: =SUM(H5:H8) -> 76971.39 | I9: 75704.89 | J9: 75628.966 | K9: 75587.966 | L9: 72418.4966 | M9: 69678.4366 | N9: 66945.1966 | O9: =SUM(O5:O8) -> 63363.1766 | P9: 60629.9366 | Q9: 57843.6966 | R9: 54693.1066 | S9: 51770.5766 | T9: 0 | AB9: =SUM(AB5:AB8) ->  | AC9: =SUM(AC5:AC8) ->  | AD9: =SUM(AD5:AD8) ->  | AE9: =SUM(AE5:AE8) -> 
A10: -
A11: ahorro | B11: 0 | C11: =C18*$B$11 -> 0 | D11: =D18*$B$11 -> 0 | E11: =Resumen!K34 -> 0 | F11: =(F18+F21)*$B$11 -> 0 | G11: =(G18+G21)*$B$11 -> 0 | H11: =Resumen!B34 -> 0 | I11: =Resumen!C34 -> 0 | J11: =Resumen!D34 -> 0 | K11: =Resumen!E34 -> 0 | L11: =Resumen!F34 -> 0 | M11: =Resumen!G34 -> 0 | N11: =Resumen!H34 -> 0 | O11: =Resumen!I34 -> 0 | P11: =Resumen!J34 -> 0 | Q11: =Resumen!K34 -> 0 | R11: =Resumen!L34 -> 0 | S11: =Resumen!M34 -> 0 | T11: =(T18+T21)*$B$11 ->  | Z11: 0 | AA11: 0 | AF11: =SUM(C11:AA11) -> 
B12: , | C12: ='RESUMEN GENERAL'!K5 -> 2165 | D12: ='RESUMEN GENERAL'!L5 -> 2218 | E12: =E11 -> 0 | F12: =E12+F11 -> 0 | G12: 0 | H12: 0 | I12: 0 | J12: 0 | K12: 0 | L12: 0 | M12: =L12+M11 -> 0 | N12: 0 | O12: 0 | P12: 0 | Q12: 0 | R12: 0 | S12: 0 | T12: =S12+T11 ->  | Z12: =Y12+Z11 ->  | AB12: =AA12+AB11 ->  | AC12: =AB12+AC11 ->  | AD12: =AC12+AD11 ->  | AE12: =AD12+AE11 -> 
C13: ='RESUMEN GENERAL'!K22 ->  | D13: ='RESUMEN GENERAL'!L22 ->  | AF13: =SUM(C13:AA13) -> 
C14: ='RESUMEN GENERAL'!K35 -> 0 | D14: ='RESUMEN GENERAL'!L35 -> 0 | AF14: =SUM(C14:AA14) -> 0
A15: gasto total (-) | C15: =SUM(C11:C14) ->  | D15: =SUM(D11:D14) ->  | E15: =Resumen!K36 -> 3150.59 | F15: =Resumen!L36 -> 2922.53 | G15: =Resumen!M36 -> 2657.23 | H15: =Resumen!B36 -> 4738.1766 | I15: =Resumen!C36 -> 3012.092 | J15: =Resumen!D36 -> 2805.85 | K15: =Resumen!E36 -> 3863.84 | L15: =Resumen!F36 -> 2740.06 | M15: =Resumen!G36 -> 2733.24 | N15: =Resumen!H36 -> 3582.02 | O15: =Resumen!I36 -> 2733.24 | P15: =Resumen!J36 -> 2786.24 | Q15: =Resumen!K36 -> 3150.59 | R15: =Resumen!L36 -> 2922.53 | S15: =Resumen!M36 -> 2657.23 | T15: =Resumen!N36 ->  | U15: =Resumen!O36 ->  | V15: =Resumen!P36 ->  | W15: =Resumen!Q36 ->  | X15: =Resumen!R36 ->  | Y15: =Resumen!S36 ->  | Z15: =Resumen!T36 ->  | AA15: =Resumen!U36 ->  | AB15: =Resumen!V36 ->  | AC15: =Resumen!W36 ->  | AD15: =Resumen!X36 ->  | AE15: =Resumen!Y36 ->  | AF15: =SUM(C15:AA15) ->  | AG15: =AVERAGE(C15:S15) -> 
N16: promedio mensual = | P16: =AVERAGE(H15:S15) -> 3143.75905 | R16: gasto anual = | S16: =SUM(H15:S15) -> 37725.1086
A17: +
A18: facturación prev. | C18: 0 | D18: 0 | E18: 0 | F18: 0 | G18: 0 | H18: =[4]Hoja1!$M$3+[4]Hoja1!$N$3+[4]Hoja1!$M$4+[4]Hoja1!$N$4 -> 1236.62 | I18: =[4]Hoja1!$M$12+[4]Hoja1!$N$12+[4]Hoja1!$M$13+[4]Hoja1!$N$13 -> 3167.538 | J18: =[4]Hoja1!$M$25+[4]Hoja1!$N$25+[4]Hoja1!$M$26+[4]Hoja1!$N$26 -> 2764.85 | K18: =[4]Hoja1!$M$34+[4]Hoja1!$N$34+[4]Hoja1!$M$35+[4]Hoja1!$N$35 -> 7634.2115 | L18: =[4]Hoja1!$M$43+[4]Hoja1!$N$43+[4]Hoja1!$M$44+[4]Hoja1!$N$44 -> 5831.0899 | M18: =[5]Hoja1!$K$49+[5]Hoja1!$L$49 -> 0 | N18: =[5]Hoja1!$K$58+[5]Hoja1!$L$58 -> 0 | O18: =[5]Hoja1!$K$67+[5]Hoja1!$L$67 -> 0 | P18: =[5]Hoja1!$K$76+[5]Hoja1!$L$76 -> 0 | Q18: =[5]Hoja1!$K$85+[5]Hoja1!$L$85 -> 0 | R18: =[5]Hoja1!$K$94+[5]Hoja1!$L$94 -> 0 | S18: =[5]Hoja1!$K$103+[5]Hoja1!$L$103 -> 0 | T18: =SUMPRODUCT((#REF!=T$4)*#REF!) ->  | U18: =SUMPRODUCT((#REF!=U$4)*#REF!) ->  | V18: =SUMPRODUCT((#REF!=V$4)*#REF!) ->  | W18: =SUMPRODUCT((#REF!=W$4)*#REF!) ->  | X18: =SUMPRODUCT((#REF!=X$4)*#REF!) ->  | Y18: =SUMPRODUCT((#REF!=Y$4)*#REF!) ->  | Z18: =SUMPRODUCT((#REF!=Z$4)*#REF!) ->  | AA18: =SUMPRODUCT((#REF!=AA$4)*#REF!) ->  | AB18: =SUMPRODUCT((#REF!=AB$4)*#REF!) ->  | AC18: =SUMPRODUCT((#REF!=AC$4)*#REF!) ->  | AD18: =SUMPRODUCT((#REF!=AD$4)*#REF!) ->  | AE18: =SUMPRODUCT((#REF!=AE$4)*#REF!) ->  | AF18: =SUM(C18:AA18) -> 
A19: pendientes | B19: (-) | F19: 236.74 | I19: =[4]Hoja1!$M$12+[4]Hoja1!$N$12 -> 0 | J19: =[4]Hoja1!$M$25+[4]Hoja1!$N$25 -> 0 | K19: =[4]Hoja1!$M$34+[4]Hoja1!$N$34 -> 6939.8409 | L19: =[4]Hoja1!$M$43+[4]Hoja1!$N$43 -> 5831.0899
B20: (+) | J20: 0 | K20: 0
A21: atrasos/otros | B21: (+)
A23: p/g líquido | C23: 0 | D23: 0 | E23: 0 | F23: 0 | G23: 0 | H23: =H18-H15-H19+H21+H20 -> -3501.5566 | I23: =I18-I15-I19+I21+I20 -> 155.446 | J23: =J18-J15-J19+J21+J20 -> -41 | K23: =K18-K15-K19+K21+K20 -> -3169.4694 | L23: -2740.06 | M23: -2733.24 | N23: -3582.02 | O23: -2733.24 | P23: -2786.24 | Q23: -3150.59 | R23: -2922.53 | S23: -2657.23 | AB23: =AB18-AB15-AB19+AB21+AB20 ->  | AC23: =AC18-AC15-AC19+AC21+AC20 ->  | AD23: =AD18-AD15-AD19+AD21+AD20 ->  | AE23: =AE18-AE15-AE19+AE21+AE20 -> 
A25: liquido fin periodo | C25: =C8-C15+C18+C21 ->  | D25: 0 | E25: 0 | F25: 0 | G25: 0 | H25: 17925.3334 | I25: 34128.966 | J25: =J8-J15+J18+J21+J20 -> 34087.966 | K25: =K8-K15+K18+K21+K20 -> 37858.3375 | L25: 34009.5265 | M25: 25445.1966 | N25: =N8-N15+N18+N21+N20 -> 21863.1766 | O25: 19129.9366 | P25: 16343.6966 | Q25: 13193.1066 | R25: 10270.5766 | S25: 7613.3466
A26: (sin depósito)

Sheet Resumen
C1: AÑO 2013 | O1: AÑO 2014 | W1: evolución económica
B2: ENERO | C2: FEBRERO | D2: MARZO | E2: ABRIL | F2: MAYO | G2: JUNIO | H2: JULIO | I2: AGOSTO | J2: SPTBRE. | K2: OCTUBRE | L2: NOVIEMBRE | M2: DICIEMBRE | N2: ENERO | O2: FEBRERO | P2: MARZO | Q2: ABRIL | R2: MAYO | S2: JUNIO | T2: JULIO | U2: AGOSTO | V2: SPTBRE. | W2: OCTUBRE | X2: NOVIEMBRE | Y2: DICIEMBRE
N3: 1 | O3: 2 | P3: 3 | Q3: 4 | R3: 5 | S3: 6 | T3: 7 | U3: 8 | V3: 9 | W3: 10 | X3: 11 | Y3: 12 | Z3: media | AA3: total | AB3: 2011 | AC3: 2012
A4: comunidades | B4: ='comunidades prptarios.'!C27 -> 1305.92 | C4: ='comunidades prptarios.'!D27 -> 1834.82 | D4: ='comunidades prptarios.'!E27 -> 1704.82 | E4: ='comunidades prptarios.'!F27 -> 2104.82 | F4: ='comunidades prptarios.'!G27 -> 2004.82 | G4: ='comunidades prptarios.'!H27 -> 2050 | H4: ='comunidades prptarios.'!I27 -> 2050 | I4: ='comunidades prptarios.'!J27 -> 2050 | J4: ='comunidades prptarios.'!K27 -> 2050 | K4: ='comunidades prptarios.'!L27 -> 2081.4 | L4: ='comunidades prptarios.'!M27 -> 2050 | M4: ='comunidades prptarios.'!N27 -> 2123.99 | N4: ='comunidades prptarios.'!O27 ->  | O4: ='comunidades prptarios.'!P27 ->  | P4: ='comunidades prptarios.'!Q27 ->  | Q4: ='comunidades prptarios.'!R27 ->  | R4: ='comunidades prptarios.'!S27 ->  | S4: ='comunidades prptarios.'!T27 ->  | T4: ='comunidades prptarios.'!U27 ->  | U4: ='comunidades prptarios.'!V27 ->  | V4: ='comunidades prptarios.'!W27 ->  | W4: ='comunidades prptarios.'!X27 ->  | X4: ='comunidades prptarios.'!Y27 ->  | Y4: ='comunidades prptarios.'!Z27 ->  | Z4: =AVERAGE(N4:Y4) ->  | AA4: =SUM(N4:Y4) ->  | AB4: =SUM(B4:M4) -> 23410.59 | AC4: =SUM(N4:Y4) -> 
V5: 3520 | W5: 3520 | X5: 3520 | Y5: 3520
A6: suministros | B6: =suministros!C14 -> 230.07 | C6: =suministros!D14 -> 83.68 | D6: =suministros!E14 -> 200 | E6: =suministros!F14 -> 100 | F6: =suministros!G14 -> 80 | G6: =suministros!H14 -> 70 | H6: =suministros!I14 -> 70 | I6: =suministros!J14 -> 70 | J6: =suministros!K14 -> 70 | K6: =suministros!L14 -> 60 | L6: =suministros!M14 -> 256.29 | M6: =suministros!N14 -> 0 | N6: =suministros!O14 ->  | O6: =suministros!P14 ->  | P6: =suministros!Q14 ->  | Q6: =suministros!R14 ->  | R6: =suministros!S14 ->  | S6: =suministros!T14 ->  | T6: =suministros!U14 ->  | U6: =suministros!V14 ->  | V6: =suministros!W14 ->  | W6: =suministros!X14 ->  | X6: =suministros!Y14 ->  | Y6: =suministros!Z14 ->  | Z6: =AVERAGE(N6:Y6) ->  | AA6: =SUM(N6:Y6) ->  | AB6: =SUM(B6:M6) -> 1290.04 | AC6: =SUM(N6:Y6) -> 
V7: 350 | W7: 350 | X7: 350 | Y7: 350
B8: =aguas!C13 -> 47.35 | C8: =aguas!D13 -> 40.01 | D8: =aguas!E13 -> 48 | E8: =aguas!F13 -> 45 | F8: =aguas!G13 -> 48 | G8: =aguas!H13 -> 45 | H8: =aguas!I13 -> 48 | I8: =aguas!J13 -> 45 | J8: =aguas!K13 -> 48 | K8: =aguas!L13 -> 45 | L8: =aguas!M13 -> 48 | M8: =aguas!N13 -> 45 | Z8: =AVERAGE(N8:Y8) ->  | AA8: =SUM(N8:Y8) -> 0 | AB8: =SUM(B8:M8) -> 552.36 | AC8: =SUM(N8:Y8) -> 0
A10: seguros | B10: =seguros!C28 -> 1360.98 | C10: =seguros!D28 -> 810.64 | D10: =seguros!E28 -> 824.96 | E10: =seguros!F28 -> 814.02 | F10: =seguros!G28 -> 568.24 | G10: =seguros!H28 -> 568.24 | H10: =seguros!I28 -> 814.02 | I10: =seguros!J28 -> 568.24 | J10: =seguros!K28 -> 568.24 | K10: =seguros!L28 -> 814.02 | L10: =seguros!M28 -> 568.24 | M10: =seguros!N28 -> 338.24 | N10: =seguros!O28 ->  | O10: =seguros!P28 ->  | P10: =seguros!Q28 ->  | Q10: =seguros!R28 ->  | R10: =seguros!S28 ->  | S10: =seguros!T28 ->  | T10: =seguros!U28 ->  | U10: =seguros!V28 ->  | V10: =seguros!W28 ->  | W10: =seguros!X28 ->  | X10: =seguros!Y28 ->  | Y10: =seguros!Z28 ->  | Z10: =AVERAGE(N10:Y10) ->  | AA10: =SUM(N10:Y10) ->  | AB10: =SUM(B10:M10) -> 8618.08 | AC10: =SUM(N10:Y10) -> 
V11: 420 | W11: 420 | X11: 420 | Y11: 420
A12: gastos fijos | B12: ='gastos fijos'!C22 -> 0 | C12: ='gastos fijos'!D22 -> 0 | D12: ='gastos fijos'!E22 -> 0 | E12: ='gastos fijos'!F22 -> 0 | F12: ='gastos fijos'!G22 -> 0 | G12: ='gastos fijos'!H22 -> 0 | H12: ='gastos fijos'!I22 -> 0 | I12: ='gastos fijos'!J22 -> 0 | J12: ='gastos fijos'!K22 -> 50 | K12: ='gastos fijos'!L22 -> 0 | L12: ='gastos fijos'!M22 -> 0 | M12: ='gastos fijos'!N22 -> 0 | N12: ='gastos fijos'!O22 ->  | O12: ='gastos fijos'!P22 ->  | P12: ='gastos fijos'!Q22 ->  | Q12: ='gastos fijos'!R22 ->  | R12: ='gastos fijos'!S22 ->  | S12: ='gastos fijos'!T22 ->  | T12: ='gastos fijos'!U22 ->  | U12: ='gastos fijos'!V22 ->  | V12: ='gastos fijos'!W22 ->  | W12: ='gastos fijos'!X22 ->  | X12: ='gastos fijos'!Y22 ->  | Z12: =AVERAGE(N12:Y12) ->  | AA12: =SUM(N12:Y12) ->  | AB12: =SUM(B12:M12) -> 50 | AC12: =SUM(N12:Y12) -> 
V13: 150 | W13: 150 | X13: 150 | Y13: 150
B14: ='gastos varios'!C31 -> 0 | C14: ='gastos varios'!D31 -> 230.67 | D14: ='gastos varios'!E31 -> 0 | E14: ='gastos varios'!F31 -> 0 | F14: ='gastos varios'!G31 -> 39 | G14: ='gastos varios'!H31 -> 0 | H14: ='gastos varios'!I31 -> 0 | I14: ='gastos varios'!J31 -> 0 | J14: ='gastos varios'!K31 -> 0 | K14: ='gastos varios'!L31 -> 150.17 | L14: ='gastos varios'!M31 -> 0 | M14: ='gastos varios'!N31 -> 150 | Z14: =AVERAGE(N14:Y14) ->  | AA14: =SUM(N14:Y14) -> 0 | AB14: =SUM(B14:M14) -> 569.84 | AC14: =SUM(N14:Y14) -> 0
A17: FACTURAS | B17: ='[6]1T'!$J$13+'[6]1T'!$J$14+'[6]1T'!$J$15+'[6]1T'!$J$16+'[6]1T'!$J$18 -> 58.8466 | C17: ='[6]1T'!$J$25+'[6]1T'!$J$26 -> 12.272 | N17: =SUMPRODUCT((#REF!=N$3)*(#REF!=$A17)*#REF!) ->  | O17: =SUMPRODUCT((#REF!=O$3)*(#REF!=$A17)*#REF!) ->  | P17: =SUMPRODUCT((#REF!=P$3)*(#REF!=$A17)*#REF!) ->  | Q17: =SUMPRODUCT((#REF!=Q$3)*(#REF!=$A17)*#REF!) ->  | R17: =SUMPRODUCT((#REF!=R$3)*(#REF!=$A17)*#REF!) ->  | S17: =SUMPRODUCT((#REF!=S$3)*(#REF!=$A17)*#REF!) ->  | T17: =SUMPRODUCT((#REF!=T$3)*(#REF!=$A17)*#REF!) ->  | U17: =SUMPRODUCT((#REF!=U$3)*(#REF!=$A17)*#REF!) ->  | V17: =SUMPRODUCT((#REF!=V$3)*(#REF!=$A17)*#REF!) ->  | W17: =SUMPRODUCT((#REF!=W$3)*(#REF!=$A17)*#REF!) ->  | X17: =SUMPRODUCT((#REF!=X$3)*(#REF!=$A17)*#REF!) ->  | Y17: =SUMPRODUCT((#REF!=Y$3)*(#REF!=$A17)*#REF!) ->  | Z17: =AVERAGE(N17:Y17) ->  | AA17: =SUM(N17:Y17) -> 
A18: FACTURAS COLEGIO | N18: =SUMPRODUCT((#REF!=N$3)*(#REF!=$A18)*#REF!) ->  | O18: =SUMPRODUCT((#REF!=O$3)*(#REF!=$A18)*#REF!) ->  | P18: =SUMPRODUCT((#REF!=P$3)*(#REF!=$A18)*#REF!) ->  | Q18: =SUMPRODUCT((#REF!=Q$3)*(#REF!=$A18)*#REF!) ->  | R18: =SUMPRODUCT((#REF!=R$3)*(#REF!=$A18)*#REF!) ->  | S18: =SUMPRODUCT((#REF!=S$3)*(#REF!=$A18)*#REF!) ->  | T18: =SUMPRODUCT((#REF!=T$3)*(#REF!=$A18)*#REF!) ->  | U18: =SUMPRODUCT((#REF!=U$3)*(#REF!=$A18)*#REF!) ->  | V18: =SUMPRODUCT((#REF!=V$3)*(#REF!=$A18)*#REF!) ->  | W18: =SUMPRODUCT((#REF!=W$3)*(#REF!=$A18)*#REF!) ->  | X18: =SUMPRODUCT((#REF!=X$3)*(#REF!=$A18)*#REF!) ->  | Y18: =SUMPRODUCT((#REF!=Y$3)*(#REF!=$A18)*#REF!) -> 
V19: 400 | W19: 400 | X19: 400 | Y19: 400
A21: pagos AEAT | K21: ='RESUMEN GENERAL'!M23 -> 0 | L21: 0 | M21: 0 | N21: =SUMPRODUCT((#REF!=N$3)*(#REF!=$A$21)*#REF!) ->  | O21: =SUMPRODUCT((#REF!=O$3)*(#REF!=$A$21)*#REF!) ->  | P21: =SUMPRODUCT((#REF!=P$3)*(#REF!=$A$21)*#REF!) ->  | Q21: =SUMPRODUCT((#REF!=Q$3)*(#REF!=$A$21)*#REF!) ->  | R21: =SUMPRODUCT((#REF!=R$3)*(#REF!=$A$21)*#REF!) ->  | S21: =SUMPRODUCT((#REF!=S$3)*(#REF!=$A$21)*#REF!) ->  | T21: =SUMPRODUCT((#REF!=T$3)*(#REF!=$A$21)*#REF!) ->  | U21: =SUMPRODUCT((#REF!=U$3)*(#REF!=$A$21)*#REF!) ->  | V21: =SUMPRODUCT((#REF!=V$3)*(#REF!=$A$21)*#REF!) ->  | W21: =SUMPRODUCT((#REF!=W$3)*(#REF!=$A$21)*#REF!) ->  | X21: =SUMPRODUCT((#REF!=X$3)*(#REF!=$A$21)*#REF!) ->  | Y21: =SUMPRODUCT((#REF!=Y$3)*(#REF!=$A$21)*#REF!) ->  | Z21: =AVERAGE(N21:Y21) ->  | AA21: =SUM(N21:Y21) ->  | AB21: =SUM(B21:M21) -> 0 | AC21: =SUM(N21:Y21) -> 
B22: 1735.01 | E22: 800 | H22: 600 | K22: 0 | L22: 0 | AA22: =SUM(B22:Y22) -> 3135.01 | AB22: =SUM(B22:M22) -> 3135.01 | AC22: =SUM(N22:Y22) -> 0
A23: creditos | B23: 0 | E23: 0 | N23: =SUMPRODUCT((#REF!=N$3)*(#REF!=$A$23)*#REF!) ->  | O23: =SUMPRODUCT((#REF!=O$3)*(#REF!=$A$23)*#REF!) ->  | P23: =SUMPRODUCT((#REF!=P$3)*(#REF!=$A$23)*#REF!) ->  | Q23: =SUMPRODUCT((#REF!=Q$3)*(#REF!=$A$23)*#REF!) ->  | R23: =SUMPRODUCT((#REF!=R$3)*(#REF!=$A$23)*#REF!) ->  | S23: =SUMPRODUCT((#REF!=S$3)*(#REF!=$A$23)*#REF!) ->  | T23: =SUMPRODUCT((#REF!=T$3)*(#REF!=$A$23)*#REF!) ->  | U23: =SUMPRODUCT((#REF!=U$3)*(#REF!=$A$23)*#REF!) ->  | V23: =SUMPRODUCT((#REF!=V$3)*(#REF!=$A$23)*#REF!) ->  | W23: =SUMPRODUCT((#REF!=W$3)*(#REF!=$A$23)*#REF!) ->  | X23: =SUMPRODUCT((#REF!=X$3)*(#REF!=$A$23)*#REF!) ->  | Y23: =SUMPRODUCT((#REF!=Y$3)*(#REF!=$A$23)*#REF!) -> 
B24: 0 | E24: 0 | V24: 122.83 | W24: 122.83 | X24: 122.83 | Y24: 122.83
K25: 0
A26: gastos con tarjeta | K26: 0 | L26: 0 | M26: 0 | N26: =SUMPRODUCT((#REF!=N$3)*(#REF!=$A$26)*#REF!) ->  | O26: =SUMPRODUCT((#REF!=O$3)*(#REF!=$A$26)*#REF!) ->  | P26: =SUMPRODUCT((#REF!=P$3)*(#REF!=$A$26)*#REF!) ->  | Q26: =SUMPRODUCT((#REF!=Q$3)*(#REF!=$A$26)*#REF!) ->  | R26: =SUMPRODUCT((#REF!=R$3)*(#REF!=$A$26)*#REF!) ->  | S26: =SUMPRODUCT((#REF!=S$3)*(#REF!=$A$26)*#REF!) ->  | T26: =SUMPRODUCT((#REF!=T$3)*(#REF!=$A$26)*#REF!) ->  | U26: =SUMPRODUCT((#REF!=U$3)*(#REF!=$A$26)*#REF!) ->  | V26: =SUMPRODUCT((#REF!=V$3)*(#REF!=$A$26)*#REF!) ->  | W26: =SUMPRODUCT((#REF!=W$3)*(#REF!=$A$26)*#REF!) ->  | X26: =SUMPRODUCT((#REF!=X$3)*(#REF!=$A$26)*#REF!) ->  | Y26: =SUMPRODUCT((#REF!=Y$3)*(#REF!=$A$26)*#REF!) ->  | Z26: =AVERAGE(N26:Y26) ->  | AA26: =SUM(N26:Y26) -> 
A27: retiradas metalico | D27: 28.07 | J27: 0 | K27: 0 | L27: 0 | M27: 0 | N27: =SUMPRODUCT((#REF!=N$3)*(#REF!=$A$27)*#REF!) ->  | O27: =SUMPRODUCT((#REF!=O$3)*(#REF!=$A$27)*#REF!) ->  | P27: =SUMPRODUCT((#REF!=P$3)*(#REF!=$A$27)*#REF!) ->  | Q27: =SUMPRODUCT((#REF!=Q$3)*(#REF!=$A$27)*#REF!) ->  | R27: =SUMPRODUCT((#REF!=R$3)*(#REF!=$A$27)*#REF!) ->  | S27: =SUMPRODUCT((#REF!=S$3)*(#REF!=$A$27)*#REF!) ->  | T27: =SUMPRODUCT((#REF!=T$3)*(#REF!=$A$27)*#REF!) ->  | U27: =SUMPRODUCT((#REF!=U$3)*(#REF!=$A$27)*#REF!) ->  | V27: =SUMPRODUCT((#REF!=V$3)*(#REF!=$A$27)*#REF!) ->  | W27: =SUMPRODUCT((#REF!=W$3)*(#REF!=$A$27)*#REF!) ->  | X27: =SUMPRODUCT((#REF!=X$3)*(#REF!=$A$27)*#REF!) ->  | Y27: =SUMPRODUCT((#REF!=Y$3)*(#REF!=$A$27)*#REF!) ->  | AA27: =SUM(N27:Y27) -> 
A28: gastos varios | K28: 0 | N28: =SUMPRODUCT((#REF!=N$3)*(#REF!=$A$28)*#REF!) ->  | O28: =SUMPRODUCT((#REF!=O$3)*(#REF!=$A$28)*#REF!) ->  | P28: =SUMPRODUCT((#REF!=P$3)*(#REF!=$A$28)*#REF!) ->  | Q28: =SUMPRODUCT((#REF!=Q$3)*(#REF!=$A$28)*#REF!) ->  | R28: =SUMPRODUCT((#REF!=R$3)*(#REF!=$A$28)*#REF!) ->  | S28: =SUMPRODUCT((#REF!=S$3)*(#REF!=$A$28)*#REF!) ->  | T28: =SUMPRODUCT((#REF!=T$3)*(#REF!=$A$28)*#REF!) ->  | U28: =SUMPRODUCT((#REF!=U$3)*(#REF!=$A$28)*#REF!) ->  | V28: =SUMPRODUCT((#REF!=V$3)*(#REF!=$A$28)*#REF!) ->  | W28: =SUMPRODUCT((#REF!=W$3)*(#REF!=$A$28)*#REF!) ->  | X28: =SUMPRODUCT((#REF!=X$3)*(#REF!=$A$28)*#REF!) ->  | Y28: =SUMPRODUCT((#REF!=Y$3)*(#REF!=$A$28)*#REF!) ->  | AA28: =SUM(N28:Y28) -> 
K29: 0 | L29: 0 | M29: 0 | V29: 650 | W29: 650 | X29: 650 | Y29: 650
A30: combustible | N30: =SUMPRODUCT((#REF!=N$3)*(#REF!=$A$30)*#REF!) ->  | O30: =SUMPRODUCT((#REF!=O$3)*(#REF!=$A$30)*#REF!) ->  | P30: =SUMPRODUCT((#REF!=P$3)*(#REF!=$A$30)*#REF!) ->  | Q30: =SUMPRODUCT((#REF!=Q$3)*(#REF!=$A$30)*#REF!) ->  | R30: =SUMPRODUCT((#REF!=R$3)*(#REF!=$A$30)*#REF!) ->  | S30: =SUMPRODUCT((#REF!=S$3)*(#REF!=$A$30)*#REF!) ->  | T30: =SUMPRODUCT((#REF!=T$3)*(#REF!=$A$30)*#REF!) ->  | U30: =SUMPRODUCT((#REF!=U$3)*(#REF!=$A$30)*#REF!) ->  | V30: =SUMPRODUCT((#REF!=V$3)*(#REF!=$A$30)*#REF!) ->  | W30: =SUMPRODUCT((#REF!=W$3)*(#REF!=$A$30)*#REF!) ->  | X30: =SUMPRODUCT((#REF!=X$3)*(#REF!=$A$30)*#REF!) ->  | Y30: =SUMPRODUCT((#REF!=Y$3)*(#REF!=$A$30)*#REF!) ->  | Z30: =AVERAGE(N30:Y30) ->  | AA30: =SUM(N30:Y30) -> 
V31: 75 | W31: 75 | X31: 75 | Y31: 75
A32: materiales/compras | N32: =SUMPRODUCT((#REF!=N$3)*(#REF!=$A$32)*#REF!) ->  | O32: =SUMPRODUCT((#REF!=O$3)*(#REF!=$A$32)*#REF!) ->  | P32: =SUMPRODUCT((#REF!=P$3)*(#REF!=$A$32)*#REF!) ->  | Q32: =SUMPRODUCT((#REF!=Q$3)*(#REF!=$A$32)*#REF!) ->  | R32: =SUMPRODUCT((#REF!=R$3)*(#REF!=$A$32)*#REF!) ->  | S32: =SUMPRODUCT((#REF!=S$3)*(#REF!=$A$32)*#REF!) ->  | T32: =SUMPRODUCT((#REF!=T$3)*(#REF!=$A$32)*#REF!) ->  | U32: =SUMPRODUCT((#REF!=U$3)*(#REF!=$A$32)*#REF!) ->  | V32: =SUMPRODUCT((#REF!=V$3)*(#REF!=$A$32)*#REF!) ->  | W32: =SUMPRODUCT((#REF!=W$3)*(#REF!=$A$32)*#REF!) ->  | X32: =SUMPRODUCT((#REF!=X$3)*(#REF!=$A$32)*#REF!) ->  | Y32: =SUMPRODUCT((#REF!=Y$3)*(#REF!=$A$32)*#REF!) ->  | Z32: =AVERAGE(N32:Y32) ->  | AA32: =SUM(N32:Y32) -> 
V33: 60 | W33: 60 | X33: 60 | Y33: 60
A34: AHORRO | K34: 0 | L34: 0 | M34: =cashflow!G18*cashflow!$B$11 -> 0 | N34: 0 | O34: 0 | P34: 0 | Q34: 0 | R34: 0 | S34: =cashflow!M18*cashflow!$B$11 -> 0 | T34: 0 | U34: =cashflow!O18*cashflow!$B$11 -> 0 | V34: =cashflow!P18*cashflow!$B$11 -> 0 | W34: 0 | X34: 0 | Y34: 0 | Z34: 0 | AA34: =SUM(N34:Y34) -> 0 | AB34: =SUM(B34:M34) -> 0 | AC34: 0
A36: GASTO TOTAL | B36: =SUM(B4:B34) -> 4738.1766 | C36: =SUM(C4:C34) -> 3012.092 | D36: =SUM(D4:D34) -> 2805.85 | E36: =SUM(E4:E34) -> 3863.84 | F36: =SUM(F4:F34) -> 2740.06 | G36: =SUM(G4:G34) -> 2733.24 | H36: =SUM(H4:H34) -> 3582.02 | I36: =SUM(I4:I34) -> 2733.24 | J36: =SUM(J4:J34) -> 2786.24 | K36: =SUM(K4:K34) -> 3150.59 | L36: =SUM(L4:L32) -> 2922.53 | M36: =SUM(M4:M33) -> 2657.23 | N36: =N4+N6+N10+N23+N26+N32+N17+N18+N21+N30+N28+N27+N12+N14 ->  | O36: =O4+O6+O10+O23+O26+O32+O17+O18+O21+O30+O28+O27+O12+O14 ->  | Z36: =AVERAGE(N36:Y36) ->  | AA36: =SUM(N36:Y36) ->  | AB36: =SUM(B36:M36) -> 37725.1086 | AC36: =SUM(N36:Y36) -> 
A37: acumulados | N37: =N36 ->  | O37: =N37+O36 ->  | P37: =O37+P36 -> 
A39: PREVISTO | V39: =V5+V7+V11+V19+V22+V24+V31+V33 -> 4947.83 | W39: =W5+W7+W11+W19+W22+W24+W31+W33 -> 4947.83 | X39: =X5+X7+X11+X19+X22+X24+X31+X33 -> 4947.83 | Y39: =Y5+Y7+Y11+Y19+Y22+Y24+Y31+Y33 -> 4947.83

Sheet gráficas
